Workbook

Sheet دليل الاصناف
A1: الكود | B1: الصنف | C1: كمية | D1: سعر البيع | E1: سعر الشراء
A2: 22222 | B2: كوتشي اكتيف | C2: 30 | D2: 120 | E2: 115
A3: 11111 | B3: تيشرت بولو نصف كم | C3: 60 | D3: 200 | E3: 195
A4: 33333 | B4: كوتشي بوما | C4: 25 | D4: 110 | E4: 97
A5: 44444 | B5: شورت ليكرا | C5: 15 | D5: 55 | E5: 51
A6: 55555 | B6: شراب اديداس | C6: 10 | D6: 25 | E6: 20
A7: 66666 | B7: تيشرت بولو XXL | C7: 20 | D7: 120 | E7: 90
A8: 77777 | B8: كوتشي اديداس | C8: 40 | D8: 120 | E8: 105

Sheet وارد
A1: التاريخ | B1: الصنف | C1: الكود | D1: الكمية الواردة | E1: سعر الوحدة | F1: القيمة | G1: رقم الباركود | I1: البحث بالأسم | M1: البحث بالأسم
A2: =IF(B2<>"",IF(A2="",TODAY(),A2),"") ->  | B2: =IFERROR(VLOOKUP(G2,'دليل الاصناف'!$A$2:$D$399,2,0),"") ->  | C2: =IF(B2="","",SUMIF('دليل الاصناف'!$B$2:$B$17,B2,'دليل الاصناف'!$A$2:$A$17)) ->  | E2: =IFERROR(VLOOKUP(G2,'دليل الاصناف'!$A$2:$E$399,5,0),"") ->  | F2: =IFERROR(IF(B2="","",D2*E2),"") -> 
A3: =IF(B3<>"",IF(A3="",TODAY(),A3),"") ->  | B3: =IFERROR(VLOOKUP(G3,'دليل الاصناف'!$A$2:$D$399,2,0),"") ->  | C3: =IF(B3="","",SUMIF('دليل الاصناف'!$B$2:$B$17,B3,'دليل الاصناف'!$A$2:$A$17)) ->  | E3: =IFERROR(VLOOKUP(G3,'دليل الاصناف'!$A$2:$E$399,5,0),"") ->  | F3: =IFERROR(IF(B3="","",D3*E3),"") ->  | G3: =IFERROR(VLOOKUP(G3,'دليل الاصناف'!$A$2:$D$397,2,0),"") -> 
B4: =IFERROR(VLOOKUP(G4,'دليل الاصناف'!$A$2:$D$399,2,0),"") ->  | C4: =IF(B4="","",SUMIF('دليل الاصناف'!$B$2:$B$17,B4,'دليل الاصناف'!$A$2:$A$17)) ->  | E4: =IFERROR(VLOOKUP(G4,'دليل الاصناف'!$A$2:$E$399,5,0),"") ->  | G4: =IFERROR(VLOOKUP(G4,'دليل الاصناف'!$A$2:$D$397,2,0),"") -> 
B5: =IFERROR(VLOOKUP(G5,'دليل الاصناف'!$A$2:$D$399,2,0),"") ->  | C5: =IF(B5="","",SUMIF('دليل الاصناف'!$B$2:$B$17,B5,'دليل الاصناف'!$A$2:$A$17)) ->  | E5: =IFERROR(VLOOKUP(G5,'دليل الاصناف'!$A$2:$E$399,5,0),"") ->  | G5: =IFERROR(VLOOKUP(G5,'دليل الاصناف'!$A$2:$D$397,2,0),"") -> 
B6: =IFERROR(VLOOKUP(G6,'دليل الاصناف'!$A$2:$D$399,2,0),"") ->  | C6: =IF(B6="","",SUMIF('دليل الاصناف'!$B$2:$B$17,B6,'دليل الاصناف'!$A$2:$A$17)) ->  | E6: =IFERROR(VLOOKUP(G6,'دليل الاصناف'!$A$2:$E$399,5,0),"") ->  | G6: =IFERROR(VLOOKUP(G6,'دليل الاصناف'!$A$2:$D$397,2,0),"") -> 
B7: =IFERROR(VLOOKUP(G7,'دليل الاصناف'!$A$2:$D$399,2,0),"") ->  | C7: =IF(B7="","",SUMIF('دليل الاصناف'!$B$2:$B$17,B7,'دليل الاصناف'!$A$2:$A$17)) ->  | E7: =IFERROR(VLOOKUP(G7,'دليل الاصناف'!$A$2:$E$399,5,0),"") ->  | G7: =IFERROR(VLOOKUP(G7,'دليل الاصناف'!$A$2:$D$397,2,0),"") -> 
B8: =IFERROR(VLOOKUP(G8,'دليل الاصناف'!$A$2:$D$399,2,0),"") ->  | C8: =IF(B8="","",SUMIF('دليل الاصناف'!$B$2:$B$17,B8,'دليل الاصناف'!$A$2:$A$17)) ->  | E8: =IFERROR(VLOOKUP(G8,'دليل الاصناف'!$A$2:$E$399,5,0),"") ->  | G8: =IFERROR(VLOOKUP(G8,'دليل الاصناف'!$A$2:$D$397,2,0),"") -> 
B9: =IFERROR(VLOOKUP(G9,'دليل الاصناف'!$A$2:$D$399,2,0),"") ->  | C9: =IF(B9="","",SUMIF('دليل الاصناف'!$B$2:$B$17,B9,'دليل الاصناف'!$A$2:$A$17)) ->  | E9: =IFERROR(VLOOKUP(G9,'دليل الاصناف'!$A$2:$E$399,5,0),"") ->  | G9: =IFERROR(VLOOKUP(G9,'دليل الاصناف'!$A$2:$D$397,2,0),"") -> 
B10: =IFERROR(VLOOKUP(G10,'دليل الاصناف'!$A$2:$D$399,2,0),"") ->  | C10: =IF(B10="","",SUMIF('دليل الاصناف'!$B$2:$B$17,B10,'دليل الاصناف'!$A$2:$A$17)) ->  | E10: =IFERROR(VLOOKUP(G10,'دليل الاصناف'!$A$2:$E$399,5,0),"") ->  | G10: =IFERROR(VLOOKUP(G10,'دليل الاصناف'!$A$2:$D$397,2,0),"") -> 
B11: =IFERROR(VLOOKUP(G11,'دليل الاصناف'!$A$2:$D$399,2,0),"") ->  | C11: =IF(B11="","",SUMIF('دليل الاصناف'!$B$2:$B$17,B11,'دليل الاصناف'!$A$2:$A$17)) ->  | E11: =IFERROR(VLOOKUP(G11,'دليل الاصناف'!$A$2:$E$399,5,0),"") ->  | G11: =IFERROR(VLOOKUP(G11,'دليل الاصناف'!$A$2:$D$397,2,0),"") -> 
B12: =IFERROR(VLOOKUP(G12,'دليل الاصناف'!$A$2:$D$399,2,0),"") ->  | C12: =IF(B12="","",SUMIF('دليل الاصناف'!$B$2:$B$17,B12,'دليل الاصناف'!$A$2:$A$17)) ->  | E12: =IFERROR(VLOOKUP(G12,'دليل الاصناف'!$A$2:$E$399,5,0),"") ->  | G12: =IFERROR(VLOOKUP(G12,'دليل الاصناف'!$A$2:$D$397,2,0),"") -> 
B13: =IFERROR(VLOOKUP(G13,'دليل الاصناف'!$A$2:$D$399,2,0),"") ->  | C13: =IF(B13="","",SUMIF('دليل الاصناف'!$B$2:$B$17,B13,'دليل الاصناف'!$A$2:$A$17)) ->  | E13: =IFERROR(VLOOKUP(G13,'دليل الاصناف'!$A$2:$E$399,5,0),"") ->  | G13: =IFERROR(VLOOKUP(G13,'دليل الاصناف'!$A$2:$D$397,2,0),"") -> 
B14: =IFERROR(VLOOKUP(G14,'دليل الاصناف'!$A$2:$D$399,2,0),"") ->  | C14: =IF(B14="","",SUMIF('دليل الاصناف'!$B$2:$B$17,B14,'دليل الاصناف'!$A$2:$A$17)) ->  | E14: =IFERROR(VLOOKUP(G14,'دليل الاصناف'!$A$2:$E$399,5,0),"") ->  | G14: =IFERROR(VLOOKUP(G14,'دليل الاصناف'!$A$2:$D$397,2,0),"") -> 
B15: =IFERROR(VLOOKUP(G15,'دليل الاصناف'!$A$2:$D$399,2,0),"") ->  | C15: =IF(B15="","",SUMIF('دليل الاصناف'!$B$2:$B$17,B15,'دليل الاصناف'!$A$2:$A$17)) ->  | E15: =IFERROR(VLOOKUP(G15,'دليل الاصناف'!$A$2:$E$399,5,0),"") ->  | G15: =IFERROR(VLOOKUP(G15,'دليل الاصناف'!$A$2:$D$397,2,0),"") -> 
B16: =IFERROR(VLOOKUP(G16,'دليل الاصناف'!$A$2:$D$399,2,0),"") ->  | C16: =IF(B16="","",SUMIF('دليل الاصناف'!$B$2:$B$17,B16,'دليل الاصناف'!$A$2:$A$17)) ->  | E16: =IFERROR(VLOOKUP(G16,'دليل الاصناف'!$A$2:$E$399,5,0),"") ->  | G16: =IFERROR(VLOOKUP(G16,'دليل الاصناف'!$A$2:$D$397,2,0),"") -> 
B17: =IFERROR(VLOOKUP(G17,'دليل الاصناف'!$A$2:$D$399,2,0),"") ->  | C17: =IF(B17="","",SUMIF('دليل الاصناف'!$B$2:$B$17,B17,'دليل الاصناف'!$A$2:$A$17)) ->  | E17: =IFERROR(VLOOKUP(G17,'دليل الاصناف'!$A$2:$E$399,5,0),"") ->  | G17: =IFERROR(VLOOKUP(G17,'دليل الاصناف'!$A$2:$D$397,2,0),"") -> 
B18: =IFERROR(VLOOKUP(G18,'دليل الاصناف'!$A$2:$D$399,2,0),"") ->  | C18: =IF(B18="","",SUMIF('دليل الاصناف'!$B$2:$B$17,B18,'دليل الاصناف'!$A$2:$A$17)) ->  | E18: =IFERROR(VLOOKUP(G18,'دليل الاصناف'!$A$2:$E$399,5,0),"") ->  | G18: =IFERROR(VLOOKUP(G18,'دليل الاصناف'!$A$2:$D$397,2,0),"") -> 
B19: =IFERROR(VLOOKUP(G19,'دليل الاصناف'!$A$2:$D$399,2,0),"") ->  | C19: =IF(B19="","",SUMIF('دليل الاصناف'!$B$2:$B$17,B19,'دليل الاصناف'!$A$2:$A$17)) ->  | E19: =IFERROR(VLOOKUP(G19,'دليل الاصناف'!$A$2:$E$399,5,0),"") ->  | G19: =IFERROR(VLOOKUP(G19,'دليل الاصناف'!$A$2:$D$397,2,0),"") -> 
B20: =IFERROR(VLOOKUP(G20,'دليل الاصناف'!$A$2:$D$399,2,0),"") ->  | C20: =IF(B20="","",SUMIF('دليل الاصناف'!$B$2:$B$17,B20,'دليل الاصناف'!$A$2:$A$17)) ->  | E20: =IFERROR(VLOOKUP(G20,'دليل الاصناف'!$A$2:$E$399,5,0),"") ->  | G20: =IFERROR(VLOOKUP(G20,'دليل الاصناف'!$A$2:$D$397,2,0),"") -> 
B21: =IFERROR(VLOOKUP(G21,'دليل الاصناف'!$A$2:$D$399,2,0),"") ->  | C21: =IF(B21="","",SUMIF('دليل الاصناف'!$B$2:$B$17,B21,'دليل الاصناف'!$A$2:$A$17)) ->  | E21: =IFERROR(VLOOKUP(G21,'دليل الاصناف'!$A$2:$E$399,5,0),"") ->  | G21: =IFERROR(VLOOKUP(G21,'دليل الاصناف'!$A$2:$D$397,2,0),"") -> 
B22: =IFERROR(VLOOKUP(G22,'دليل الاصناف'!$A$2:$D$399,2,0),"") ->  | C22: =IF(B22="","",SUMIF('دليل الاصناف'!$B$2:$B$17,B22,'دليل الاصناف'!$A$2:$A$17)) ->  | E22: =IFERROR(VLOOKUP(G22,'دليل الاصناف'!$A$2:$E$399,5,0),"") ->  | G22: =IFERROR(VLOOKUP(G22,'دليل الاصناف'!$A$2:$D$397,2,0),"") -> 
B23: =IFERROR(VLOOKUP(G23,'دليل الاصناف'!$A$2:$D$399,2,0),"") ->  | C23: =IF(B23="","",SUMIF('دليل الاصناف'!$B$2:$B$17,B23,'دليل الاصناف'!$A$2:$A$17)) ->  | E23: =IFERROR(VLOOKUP(G23,'دليل الاصناف'!$A$2:$E$399,5,0),"") ->  | G23: =IFERROR(VLOOKUP(G23,'دليل الاصناف'!$A$2:$D$397,2,0),"") -> 
B24: =IFERROR(VLOOKUP(G24,'دليل الاصناف'!$A$2:$D$399,2,0),"") ->  | C24: =IF(B24="","",SUMIF('دليل الاصناف'!$B$2:$B$17,B24,'دليل الاصناف'!$A$2:$A$17)) ->  | E24: =IFERROR(VLOOKUP(G24,'دليل الاصناف'!$A$2:$E$399,5,0),"") ->  | G24: =IFERROR(VLOOKUP(G24,'دليل الاصناف'!$A$2:$D$397,2,0),"") -> 
B25: =IFERROR(VLOOKUP(G25,'دليل الاصناف'!$A$2:$D$399,2,0),"") ->  | C25: =IF(B25="","",SUMIF('دليل الاصناف'!$B$2:$B$17,B25,'دليل الاصناف'!$A$2:$A$17)) ->  | E25: =IFERROR(VLOOKUP(G25,'دليل الاصناف'!$A$2:$E$399,5,0),"") -> 
B26: =IFERROR(VLOOKUP(G26,'دليل الاصناف'!$A$2:$D$399,2,0),"") ->  | C26: =IF(B26="","",SUMIF('دليل الاصناف'!$B$2:$B$17,B26,'دليل الاصناف'!$A$2:$A$17)) ->  | E26: =IFERROR(VLOOKUP(G26,'دليل الاصناف'!$A$2:$E$399,5,0),"") ->  | G26: =IFERROR(VLOOKUP(G26,'دليل الاصناف'!$A$2:$D$397,2,0),"") -> 
B27: =IFERROR(VLOOKUP(G27,'دليل الاصناف'!$A$2:$D$399,2,0),"") ->  | C27: =IF(B27="","",SUMIF('دليل الاصناف'!$B$2:$B$17,B27,'دليل الاصناف'!$A$2:$A$17)) ->  | E27: =IFERROR(VLOOKUP(G27,'دليل الاصناف'!$A$2:$E$399,5,0),"") ->  | G27: =IFERROR(VLOOKUP(G27,'دليل الاصناف'!$A$2:$D$397,2,0),"") -> 
B28: =IFERROR(VLOOKUP(G28,'دليل الاصناف'!$A$2:$D$399,2,0),"") ->  | C28: =IF(B28="","",SUMIF('دليل الاصناف'!$B$2:$B$17,B28,'دليل الاصناف'!$A$2:$A$17)) ->  | E28: =IFERROR(VLOOKUP(G28,'دليل الاصناف'!$A$2:$E$399,5,0),"") ->  | G28: =IFERROR(VLOOKUP(G28,'دليل الاصناف'!$A$2:$D$397,2,0),"") -> 
B29: =IFERROR(VLOOKUP(G29,'دليل الاصناف'!$A$2:$D$399,2,0),"") ->  | C29: =IF(B29="","",SUMIF('دليل الاصناف'!$B$2:$B$17,B29,'دليل الاصناف'!$A$2:$A$17)) ->  | E29: =IFERROR(VLOOKUP(G29,'دليل الاصناف'!$A$2:$E$399,5,0),"") ->  | G29: =IFERROR(VLOOKUP(G29,'دليل الاصناف'!$A$2:$D$397,2,0),"") -> 
C4629: =IFERROR(VLOOKUP(ROWS(C4629:$C$4629),$D$4629:$E$6217,2,FALSE),"") -> كوتشي اكتيف | D4629: =IF(ISNUMBER(SEARCH($H$1,E4629)),MAXA(D4628:$D$4628)+1,0) -> 0 | E4629: ='دليل الاصناف'!#REF! ->  | F4629: =OFFSET($C$4629,,,COUNTIF($C$4629:$C$6217,"?*")) -> كوتشي اكتيف
C4630: =IFERROR(VLOOKUP(ROWS(C$4629:$C4630),$D$4629:$E$6217,2,FALSE),"") -> كوتشي بوما | D4630: =IF(ISNUMBER(SEARCH($H$1,E4630)),MAXA(D$4628:$D4629)+1,0) -> 1 | E4630: ='دليل الاصناف'!B2 -> كوتشي اكتيف | F4630: =OFFSET($C$4629,,,COUNTIF($C$4629:$C$6217,"?*")) -> كوتشي بوما
C4631: =IFERROR(VLOOKUP(ROWS(C$4629:$C4631),$D$4629:$E$6217,2,FALSE),"") -> شورت ليكرا | D4631: =IF(ISNUMBER(SEARCH($H$1,E4631)),MAXA(D$4628:$D4630)+1,0) -> 2 | E4631: ='دليل الاصناف'!B4 -> كوتشي بوما | F4631: شورت ليكرا
C4632: =IFERROR(VLOOKUP(ROWS(C$4629:$C4632),$D$4629:$E$6217,2,FALSE),"") -> شراب اديداس | D4632: =IF(ISNUMBER(SEARCH($H$1,E4632)),MAXA(D$4628:$D4631)+1,0) -> 3 | E4632: ='دليل الاصناف'!B5 -> شورت ليكرا | F4632: شراب اديداس
C4633: =IFERROR(VLOOKUP(ROWS(C$4629:$C4633),$D$4629:$E$6217,2,FALSE),"") -> تيشرت بولو XXL | D4633: =IF(ISNUMBER(SEARCH($H$1,E4633)),MAXA(D$4628:$D4632)+1,0) -> 4 | E4633: ='دليل الاصناف'!B6 -> شراب اديداس | F4633: تيشرت بولو XXL
C4634: =IFERROR(VLOOKUP(ROWS(C$4629:$C4634),$D$4629:$E$6217,2,FALSE),"") -> كوتشي اديداس | D4634: =IF(ISNUMBER(SEARCH($H$1,E4634)),MAXA(D$4628:$D4633)+1,0) -> 0 | E4634: ='دليل الاصناف'!#REF! ->  | F4634: كوتشي اديداس
C4635: =IFERROR(VLOOKUP(ROWS(C$4629:$C4635),$D$4629:$E$6217,2,FALSE),"") -> 0 | D4635: =IF(ISNUMBER(SEARCH($H$1,E4635)),MAXA(D$4628:$D4634)+1,0) -> 0 | E4635: ='دليل الاصناف'!#REF! -> 
C4636: =IFERROR(VLOOKUP(ROWS(C$4629:$C4636),$D$4629:$E$6217,2,FALSE),"") -> 0 | D4636: =IF(ISNUMBER(SEARCH($H$1,E4636)),MAXA(D$4628:$D4635)+1,0) -> 5 | E4636: ='دليل الاصناف'!B7 -> تيشرت بولو XXL
C4637: =IFERROR(VLOOKUP(ROWS(C$4629:$C4637),$D$4629:$E$6217,2,FALSE),"") -> 0 | D4637: =IF(ISNUMBER(SEARCH($H$1,E4637)),MAXA(D$4628:$D4636)+1,0) -> 6 | E4637: ='دليل الاصناف'!B8 -> كوتشي اديداس
C4638: =IFERROR(VLOOKUP(ROWS(C$4629:$C4638),$D$4629:$E$6217,2,FALSE),"") -> 0 | D4638: =IF(ISNUMBER(SEARCH($H$1,E4638)),MAXA(D$4628:$D4637)+1,0) -> 7 | E4638: ='دليل الاصناف'!B9 -> 0
C4639: =IFERROR(VLOOKUP(ROWS(C$4629:$C4639),$D$4629:$E$6217,2,FALSE),"") -> 0 | D4639: =IF(ISNUMBER(SEARCH($H$1,E4639)),MAXA(D$4628:$D4638)+1,0) -> 8 | E4639: ='دليل الاصناف'!B10 -> 0
C4640: =IFERROR(VLOOKUP(ROWS(C$4629:$C4640),$D$4629:$E$6217,2,FALSE),"") -> 0 | D4640: =IF(ISNUMBER(SEARCH($H$1,E4640)),MAXA(D$4628:$D4639)+1,0) -> 9 | E4640: ='دليل الاصناف'!B11 -> 0
C4641: =IFERROR(VLOOKUP(ROWS(C$4629:$C4641),$D$4629:$E$6217,2,FALSE),"") -> 0 | D4641: =IF(ISNUMBER(SEARCH($H$1,E4641)),MAXA(D$4628:$D4640)+1,0) -> 10 | E4641: ='دليل الاصناف'!B12 -> 0
C4642: =IFERROR(VLOOKUP(ROWS(C$4629:$C4642),$D$4629:$E$6217,2,FALSE),"") -> 0 | D4642: =IF(ISNUMBER(SEARCH($H$1,E4642)),MAXA(D$4628:$D4641)+1,0) -> 11 | E4642: ='دليل الاصناف'!B13 -> 0
C4643: =IFERROR(VLOOKUP(ROWS(C$4629:$C4643),$D$4629:$E$6217,2,FALSE),"") -> 0 | D4643: =IF(ISNUMBER(SEARCH($H$1,E4643)),MAXA(D$4628:$D4642)+1,0) -> 12 | E4643: ='دليل الاصناف'!B14 -> 0
C4644: =IFERROR(VLOOKUP(ROWS(C$4629:$C4644),$D$4629:$E$6217,2,FALSE),"") -> 0 | D4644: =IF(ISNUMBER(SEARCH($H$1,E4644)),MAXA(D$4628:$D4643)+1,0) -> 13 | E4644: ='دليل الاصناف'!B15 -> 0
C4645: =IFERROR(VLOOKUP(ROWS(C$4629:$C4645),$D$4629:$E$6217,2,FALSE),"") -> 0 | D4645: =IF(ISNUMBER(SEARCH($H$1,E4645)),MAXA(D$4628:$D4644)+1,0) -> 14 | E4645: ='دليل الاصناف'!B16 -> 0
C4646: =IFERROR(VLOOKUP(ROWS(C$4629:$C4646),$D$4629:$E$6217,2,FALSE),"") -> 0 | D4646: =IF(ISNUMBER(SEARCH($H$1,E4646)),MAXA(D$4628:$D4645)+1,0) -> 15 | E4646: ='دليل الاصناف'!B17 -> 0
C4647: =IFERROR(VLOOKUP(ROWS(C$4629:$C4647),$D$4629:$E$6217,2,FALSE),"") -> 0 | D4647: =IF(ISNUMBER(SEARCH($H$1,E4647)),MAXA(D$4628:$D4646)+1,0) -> 16 | E4647: ='دليل الاصناف'!B18 -> 0
C4648: =IFERROR(VLOOKUP(ROWS(C$4629:$C4648),$D$4629:$E$6217,2,FALSE),"") -> 0 | D4648: =IF(ISNUMBER(SEARCH($H$1,E4648)),MAXA(D$4628:$D4647)+1,0) -> 17 | E4648: ='دليل الاصناف'!B19 -> 0
C4649: =IFERROR(VLOOKUP(ROWS(C$4629:$C4649),$D$4629:$E$6217,2,FALSE),"") -> 0 | D4649: =IF(ISNUMBER(SEARCH($H$1,E4649)),MAXA(D$4628:$D4648)+1,0) -> 18 | E4649: ='دليل الاصناف'!B20 -> 0
C4650: =IFERROR(VLOOKUP(ROWS(C$4629:$C4650),$D$4629:$E$6217,2,FALSE),"") -> 0 | D4650: =IF(ISNUMBER(SEARCH($H$1,E4650)),MAXA(D$4628:$D4649)+1,0) -> 19 | E4650: ='دليل الاصناف'!B21 -> 0
C4651: =IFERROR(VLOOKUP(ROWS(C$4629:$C4651),$D$4629:$E$6217,2,FALSE),"") -> 0 | D4651: =IF(ISNUMBER(SEARCH($H$1,E4651)),MAXA(D$4628:$D4650)+1,0) -> 20 | E4651: ='دليل الاصناف'!B22 -> 0
C4652: =IFERROR(VLOOKUP(ROWS(C$4629:$C4652),$D$4629:$E$6217,2,FALSE),"") -> 0 | D4652: =IF(ISNUMBER(SEARCH($H$1,E4652)),MAXA(D$4628:$D4651)+1,0) -> 21 | E4652: ='دليل الاصناف'!B23 -> 0
C4653: =IFERROR(VLOOKUP(ROWS(C$4629:$C4653),$D$4629:$E$6217,2,FALSE),"") -> 0 | D4653: =IF(ISNUMBER(SEARCH($H$1,E4653)),MAXA(D$4628:$D4652)+1,0) -> 22 | E4653: ='دليل الاصناف'!B24 -> 0
C4654: =IFERROR(VLOOKUP(ROWS(C$4629:$C4654),$D$4629:$E$6217,2,FALSE),"") -> 0 | D4654: =IF(ISNUMBER(SEARCH($H$1,E4654)),MAXA(D$4628:$D4653)+1,0) -> 23 | E4654: ='دليل الاصناف'!B25 -> 0
C4655: =IFERROR(VLOOKUP(ROWS(C$4629:$C4655),$D$4629:$E$6217,2,FALSE),"") -> 0 | D4655: =IF(ISNUMBER(SEARCH($H$1,E4655)),MAXA(D$4628:$D4654)+1,0) -> 24 | E4655: ='دليل الاصناف'!B26 -> 0
C4656: =IFERROR(VLOOKUP(ROWS(C$4629:$C4656),$D$4629:$E$6217,2,FALSE),"") -> 0 | D4656: =IF(ISNUMBER(SEARCH($H$1,E4656)),MAXA(D$4628:$D4655)+1,0) -> 25 | E4656: ='دليل الاصناف'!B27 -> 0
C4657: =IFERROR(VLOOKUP(ROWS(C$4629:$C4657),$D$4629:$E$6217,2,FALSE),"") -> 0 | D4657: =IF(ISNUMBER(SEARCH($H$1,E4657)),MAXA(D$4628:$D4656)+1,0) -> 26 | E4657: ='دليل الاصناف'!B28 -> 0
C4658: =IFERROR(VLOOKUP(ROWS(C$4629:$C4658),$D$4629:$E$6217,2,FALSE),"") -> 0 | D4658: =IF(ISNUMBER(SEARCH($H$1,E4658)),MAXA(D$4628:$D4657)+1,0) -> 27 | E4658: ='دليل الاصناف'!B29 -> 0
C4659: =IFERROR(VLOOKUP(ROWS(C$4629:$C4659),$D$4629:$E$6217,2,FALSE),"") -> 0 | D4659: =IF(ISNUMBER(SEARCH($H$1,E4659)),MAXA(D$4628:$D4658)+1,0) -> 28 | E4659: ='دليل الاصناف'!B30 -> 0
C4660: =IFERROR(VLOOKUP(ROWS(C$4629:$C4660),$D$4629:$E$6217,2,FALSE),"") -> 0 | D4660: =IF(ISNUMBER(SEARCH($H$1,E4660)),MAXA(D$4628:$D4659)+1,0) -> 29 | E4660: ='دليل الاصناف'!B31 -> 0
C4661: =IFERROR(VLOOKUP(ROWS(C$4629:$C4661),$D$4629:$E$6217,2,FALSE),"") -> 0 | D4661: =IF(ISNUMBER(SEARCH($H$1,E4661)),MAXA(D$4628:$D4660)+1,0) -> 30 | E4661: ='دليل الاصناف'!B32 -> 0
C4662: =IFERROR(VLOOKUP(ROWS(C$4629:$C4662),$D$4629:$E$6217,2,FALSE),"") -> 0 | D4662: =IF(ISNUMBER(SEARCH($H$1,E4662)),MAXA(D$4628:$D4661)+1,0) -> 31 | E4662: ='دليل الاصناف'!B33 -> 0
C4663: =IFERROR(VLOOKUP(ROWS(C$4629:$C4663),$D$4629:$E$6217,2,FALSE),"") -> 0 | D4663: =IF(ISNUMBER(SEARCH($H$1,E4663)),MAXA(D$4628:$D4662)+1,0) -> 32 | E4663: ='دليل الاصناف'!B34 -> 0
C4664: =IFERROR(VLOOKUP(ROWS(C$4629:$C4664),$D$4629:$E$6217,2,FALSE),"") -> 0 | D4664: =IF(ISNUMBER(SEARCH($H$1,E4664)),MAXA(D$4628:$D4663)+1,0) -> 33 | E4664: ='دليل الاصناف'!B35 -> 0
C4665: =IFERROR(VLOOKUP(ROWS(C$4629:$C4665),$D$4629:$E$6217,2,FALSE),"") -> 0 | D4665: =IF(ISNUMBER(SEARCH($H$1,E4665)),MAXA(D$4628:$D4664)+1,0) -> 34 | E4665: ='دليل الاصناف'!B36 -> 0
C4666: =IFERROR(VLOOKUP(ROWS(C$4629:$C4666),$D$4629:$E$6217,2,FALSE),"") -> 0 | D4666: =IF(ISNUMBER(SEARCH($H$1,E4666)),MAXA(D$4628:$D4665)+1,0) -> 35 | E4666: ='دليل الاصناف'!B37 -> 0
C4667: =IFERROR(VLOOKUP(ROWS(C$4629:$C4667),$D$4629:$E$6217,2,FALSE),"") -> 0 | D4667: =IF(ISNUMBER(SEARCH($H$1,E4667)),MAXA(D$4628:$D4666)+1,0) -> 36 | E4667: ='دليل الاصناف'!B38 -> 0
C4668: =IFERROR(VLOOKUP(ROWS(C$4629:$C4668),$D$4629:$E$6217,2,FALSE),"") -> 0 | D4668: =IF(ISNUMBER(SEARCH($H$1,E4668)),MAXA(D$4628:$D4667)+1,0) -> 37 | E4668: ='دليل الاصناف'!B39 -> 0
C4669: =IFERROR(VLOOKUP(ROWS(C$4629:$C4669),$D$4629:$E$6217,2,FALSE),"") -> 0 | D4669: =IF(ISNUMBER(SEARCH($H$1,E4669)),MAXA(D$4628:$D4668)+1,0) -> 38 | E4669: ='دليل الاصناف'!B40 -> 0
C4670: =IFERROR(VLOOKUP(ROWS(C$4629:$C4670),$D$4629:$E$6217,2,FALSE),"") -> 0 | D4670: =IF(ISNUMBER(SEARCH($H$1,E4670)),MAXA(D$4628:$D4669)+1,0) -> 39 | E4670: ='دليل الاصناف'!B41 -> 0
C4671: =IFERROR(VLOOKUP(ROWS(C$4629:$C4671),$D$4629:$E$6217,2,FALSE),"") -> 0 | D4671: =IF(ISNUMBER(SEARCH($H$1,E4671)),MAXA(D$4628:$D4670)+1,0) -> 40 | E4671: ='دليل الاصناف'!B42 -> 0
C4672: =IFERROR(VLOOKUP(ROWS(C$4629:$C4672),$D$4629:$E$6217,2,FALSE),"") -> 0 | D4672: =IF(ISNUMBER(SEARCH($H$1,E4672)),MAXA(D$4628:$D4671)+1,0) -> 41 | E4672: ='دليل الاصناف'!B43 -> 0
C4673: =IFERROR(VLOOKUP(ROWS(C$4629:$C4673),$D$4629:$E$6217,2,FALSE),"") -> 0 | D4673: =IF(ISNUMBER(SEARCH($H$1,E4673)),MAXA(D$4628:$D4672)+1,0) -> 42 | E4673: ='دليل الاصناف'!B44 -> 0
C4674: =IFERROR(VLOOKUP(ROWS(C$4629:$C4674),$D$4629:$E$6217,2,FALSE),"") -> 0 | D4674: =IF(ISNUMBER(SEARCH($H$1,E4674)),MAXA(D$4628:$D4673)+1,0) -> 43 | E4674: ='دليل الاصناف'!B45 -> 0
C4675: =IFERROR(VLOOKUP(ROWS(C$4629:$C4675),$D$4629:$E$6217,2,FALSE),"") -> 0 | D4675: =IF(ISNUMBER(SEARCH($H$1,E4675)),MAXA(D$4628:$D4674)+1,0) -> 44 | E4675: ='دليل الاصناف'!B46 -> 0
C4676: =IFERROR(VLOOKUP(ROWS(C$4629:$C4676),$D$4629:$E$6217,2,FALSE),"") -> 0 | D4676: =IF(ISNUMBER(SEARCH($H$1,E4676)),MAXA(D$4628:$D4675)+1,0) -> 45 | E4676: ='دليل الاصناف'!B47 -> 0
C4677: =IFERROR(VLOOKUP(ROWS(C$4629:$C4677),$D$4629:$E$6217,2,FALSE),"") -> 0 | D4677: =IF(ISNUMBER(SEARCH($H$1,E4677)),MAXA(D$4628:$D4676)+1,0) -> 46 | E4677: ='دليل الاصناف'!B48 -> 0
C4678: =IFERROR(VLOOKUP(ROWS(C$4629:$C4678),$D$4629:$E$6217,2,FALSE),"") -> 0 | D4678: =IF(ISNUMBER(SEARCH($H$1,E4678)),MAXA(D$4628:$D4677)+1,0) -> 47 | E4678: ='دليل الاصناف'!B49 -> 0
C4679: =IFERROR(VLOOKUP(ROWS(C$4629:$C4679),$D$4629:$E$6217,2,FALSE),"") -> 0 | D4679: =IF(ISNUMBER(SEARCH($H$1,E4679)),MAXA(D$4628:$D4678)+1,0) -> 48 | E4679: ='دليل الاصناف'!B50 -> 0
C4680: =IFERROR(VLOOKUP(ROWS(C$4629:$C4680),$D$4629:$E$6217,2,FALSE),"") -> 0 | D4680: =IF(ISNUMBER(SEARCH($H$1,E4680)),MAXA(D$4628:$D4679)+1,0) -> 49 | E4680: ='دليل الاصناف'!B51 -> 0
C4681: =IFERROR(VLOOKUP(ROWS(C$4629:$C4681),$D$4629:$E$6217,2,FALSE),"") -> 0 | D4681: =IF(ISNUMBER(SEARCH($H$1,E4681)),MAXA(D$4628:$D4680)+1,0) -> 50 | E4681: ='دليل الاصناف'!B52 -> 0
C4682: =IFERROR(VLOOKUP(ROWS(C$4629:$C4682),$D$4629:$E$6217,2,FALSE),"") -> 0 | D4682: =IF(ISNUMBER(SEARCH($H$1,E4682)),MAXA(D$4628:$D4681)+1,0) -> 51 | E4682: ='دليل الاصناف'!B53 -> 0
C4683: =IFERROR(VLOOKUP(ROWS(C$4629:$C4683),$D$4629:$E$6217,2,FALSE),"") -> 0 | D4683: =IF(ISNUMBER(SEARCH($H$1,E4683)),MAXA(D$4628:$D4682)+1,0) -> 52 | E4683: ='دليل الاصناف'!B54 -> 0
C4684: =IFERROR(VLOOKUP(ROWS(C$4629:$C4684),$D$4629:$E$6217,2,FALSE),"") -> 0 | D4684: =IF(ISNUMBER(SEARCH($H$1,E4684)),MAXA(D$4628:$D4683)+1,0) -> 53 | E4684: ='دليل الاصناف'!B55 -> 0
C4685: =IFERROR(VLOOKUP(ROWS(C$4629:$C4685),$D$4629:$E$6217,2,FALSE),"") -> 0 | D4685: =IF(ISNUMBER(SEARCH($H$1,E4685)),MAXA(D$4628:$D4684)+1,0) -> 54 | E4685: ='دليل الاصناف'!B56 -> 0
C4686: =IFERROR(VLOOKUP(ROWS(C$4629:$C4686),$D$4629:$E$6217,2,FALSE),"") -> 0 | D4686: =IF(ISNUMBER(SEARCH($H$1,E4686)),MAXA(D$4628:$D4685)+1,0) -> 55 | E4686: ='دليل الاصناف'!B57 -> 0
C4687: =IFERROR(VLOOKUP(ROWS(C$4629:$C4687),$D$4629:$E$6217,2,FALSE),"") -> 0 | D4687: =IF(ISNUMBER(SEARCH($H$1,E4687)),MAXA(D$4628:$D4686)+1,0) -> 56 | E4687: ='دليل الاصناف'!B58 -> 0
C4688: =IFERROR(VLOOKUP(ROWS(C$4629:$C4688),$D$4629:$E$6217,2,FALSE),"") -> 0 | D4688: =IF(ISNUMBER(SEARCH($H$1,E4688)),MAXA(D$4628:$D4687)+1,0) -> 57 | E4688: ='دليل الاصناف'!B59 -> 0
C4689: =IFERROR(VLOOKUP(ROWS(C$4629:$C4689),$D$4629:$E$6217,2,FALSE),"") -> 0 | D4689: =IF(ISNUMBER(SEARCH($H$1,E4689)),MAXA(D$4628:$D4688)+1,0) -> 58 | E4689: ='دليل الاصناف'!B60 -> 0
C4690: =IFERROR(VLOOKUP(ROWS(C$4629:$C4690),$D$4629:$E$6217,2,FALSE),"") -> 0 | D4690: =IF(ISNUMBER(SEARCH($H$1,E4690)),MAXA(D$4628:$D4689)+1,0) -> 59 | E4690: ='دليل الاصناف'!B61 -> 0
C4691: =IFERROR(VLOOKUP(ROWS(C$4629:$C4691),$D$4629:$E$6217,2,FALSE),"") -> 0 | D4691: =IF(ISNUMBER(SEARCH($H$1,E4691)),MAXA(D$4628:$D4690)+1,0) -> 60 | E4691: ='دليل الاصناف'!B62 -> 0
C4692: =IFERROR(VLOOKUP(ROWS(C$4629:$C4692),$D$4629:$E$6217,2,FALSE),"") -> 0 | D4692: =IF(ISNUMBER(SEARCH($H$1,E4692)),MAXA(D$4628:$D4691)+1,0) -> 61 | E4692: ='دليل الاصناف'!B63 -> 0
C4693: =IFERROR(VLOOKUP(ROWS(C$4629:$C4693),$D$4629:$E$6217,2,FALSE),"") -> 0 | D4693: =IF(ISNUMBER(SEARCH($H$1,E4693)),MAXA(D$4628:$D4692)+1,0) -> 62 | E4693: ='دليل الاصناف'!B64 -> 0
C4694: =IFERROR(VLOOKUP(ROWS(C$4629:$C4694),$D$4629:$E$6217,2,FALSE),"") -> 0 | D4694: =IF(ISNUMBER(SEARCH($H$1,E4694)),MAXA(D$4628:$D4693)+1,0) -> 63 | E4694: ='دليل الاصناف'!B65 -> 0 | F4694: =OFFSET($C$4629,,,COUNTIF($C$4629:$C$6217,"?*")) -> 
C4695: =IFERROR(VLOOKUP(ROWS(C$4629:$C4695),$D$4629:$E$6217,2,FALSE),"") -> 0 | D4695: =IF(ISNUMBER(SEARCH($H$1,E4695)),MAXA(D$4628:$D4694)+1,0) -> 64 | E4695: ='دليل الاصناف'!B66 -> 0
C4696: =IFERROR(VLOOKUP(ROWS(C$4629:$C4696),$D$4629:$E$6217,2,FALSE),"") -> 0 | D4696: =IF(ISNUMBER(SEARCH($H$1,E4696)),MAXA(D$4628:$D4695)+1,0) -> 65 | E4696: ='دليل الاصناف'!B67 -> 0
C4697: =IFERROR(VLOOKUP(ROWS(C$4629:$C4697),$D$4629:$E$6217,2,FALSE),"") -> 0 | D4697: =IF(ISNUMBER(SEARCH($H$1,E4697)),MAXA(D$4628:$D4696)+1,0) -> 66 | E4697: ='دليل الاصناف'!B68 -> 0
C4698: =IFERROR(VLOOKUP(ROWS(C$4629:$C4698),$D$4629:$E$6217,2,FALSE),"") -> 0 | D4698: =IF(ISNUMBER(SEARCH($H$1,E4698)),MAXA(D$4628:$D4697)+1,0) -> 67 | E4698: ='دليل الاصناف'!B69 -> 0
C4699: =IFERROR(VLOOKUP(ROWS(C$4629:$C4699),$D$4629:$E$6217,2,FALSE),"") -> 0 | D4699: =IF(ISNUMBER(SEARCH($H$1,E4699)),MAXA(D$4628:$D4698)+1,0) -> 68 | E4699: ='دليل الاصناف'!B70 -> 0
C4700: =IFERROR(VLOOKUP(ROWS(C$4629:$C4700),$D$4629:$E$6217,2,FALSE),"") -> 0 | D4700: =IF(ISNUMBER(SEARCH($H$1,E4700)),MAXA(D$4628:$D4699)+1,0) -> 69 | E4700: ='دليل الاصناف'!B71 -> 0
C4701: =IFERROR(VLOOKUP(ROWS(C$4629:$C4701),$D$4629:$E$6217,2,FALSE),"") -> 0 | D4701: =IF(ISNUMBER(SEARCH($H$1,E4701)),MAXA(D$4628:$D4700)+1,0) -> 70 | E4701: ='دليل الاصناف'!B72 -> 0
C4702: =IFERROR(VLOOKUP(ROWS(C$4629:$C4702),$D$4629:$E$6217,2,FALSE),"") -> 0 | D4702: =IF(ISNUMBER(SEARCH($H$1,E4702)),MAXA(D$4628:$D4701)+1,0) -> 71 | E4702: ='دليل الاصناف'!B73 -> 0
C4703: =IFERROR(VLOOKUP(ROWS(C$4629:$C4703),$D$4629:$E$6217,2,FALSE),"") -> 0 | D4703: =IF(ISNUMBER(SEARCH($H$1,E4703)),MAXA(D$4628:$D4702)+1,0) -> 72 | E4703: ='دليل الاصناف'!B74 -> 0
C4704: =IFERROR(VLOOKUP(ROWS(C$4629:$C4704),$D$4629:$E$6217,2,FALSE),"") -> 0 | D4704: =IF(ISNUMBER(SEARCH($H$1,E4704)),MAXA(D$4628:$D4703)+1,0) -> 73 | E4704: ='دليل الاصناف'!B75 -> 0
C4705: =IFERROR(VLOOKUP(ROWS(C$4629:$C4705),$D$4629:$E$6217,2,FALSE),"") -> 0 | D4705: =IF(ISNUMBER(SEARCH($H$1,E4705)),MAXA(D$4628:$D4704)+1,0) -> 74 | E4705: ='دليل الاصناف'!B76 -> 0
C4706: =IFERROR(VLOOKUP(ROWS(C$4629:$C4706),$D$4629:$E$6217,2,FALSE),"") -> 0 | D4706: =IF(ISNUMBER(SEARCH($H$1,E4706)),MAXA(D$4628:$D4705)+1,0) -> 75 | E4706: ='دليل الاصناف'!B77 -> 0
C4707: =IFERROR(VLOOKUP(ROWS(C$4629:$C4707),$D$4629:$E$6217,2,FALSE),"") -> 0 | D4707: =IF(ISNUMBER(SEARCH($H$1,E4707)),MAXA(D$4628:$D4706)+1,0) -> 76 | E4707: ='دليل الاصناف'!B78 -> 0
C4708: =IFERROR(VLOOKUP(ROWS(C$4629:$C4708),$D$4629:$E$6217,2,FALSE),"") -> 0 | D4708: =IF(ISNUMBER(SEARCH($H$1,E4708)),MAXA(D$4628:$D4707)+1,0) -> 77 | E4708: ='دليل الاصناف'!B79 -> 0
C4709: =IFERROR(VLOOKUP(ROWS(C$4629:$C4709),$D$4629:$E$6217,2,FALSE),"") -> 0 | D4709: =IF(ISNUMBER(SEARCH($H$1,E4709)),MAXA(D$4628:$D4708)+1,0) -> 78 | E4709: ='دليل الاصناف'!B80 -> 0
C4710: =IFERROR(VLOOKUP(ROWS(C$4629:$C4710),$D$4629:$E$6217,2,FALSE),"") -> 0 | D4710: =IF(ISNUMBER(SEARCH($H$1,E4710)),MAXA(D$4628:$D4709)+1,0) -> 79 | E4710: ='دليل الاصناف'!B81 -> 0
C4711: =IFERROR(VLOOKUP(ROWS(C$4629:$C4711),$D$4629:$E$6217,2,FALSE),"") -> 0 | D4711: =IF(ISNUMBER(SEARCH($H$1,E4711)),MAXA(D$4628:$D4710)+1,0) -> 80 | E4711: ='دليل الاصناف'!B82 -> 0
C4712: =IFERROR(VLOOKUP(ROWS(C$4629:$C4712),$D$4629:$E$6217,2,FALSE),"") -> 0 | D4712: =IF(ISNUMBER(SEARCH($H$1,E4712)),MAXA(D$4628:$D4711)+1,0) -> 81 | E4712: ='دليل الاصناف'!B83 -> 0
C4713: =IFERROR(VLOOKUP(ROWS(C$4629:$C4713),$D$4629:$E$6217,2,FALSE),"") -> 0 | D4713: =IF(ISNUMBER(SEARCH($H$1,E4713)),MAXA(D$4628:$D4712)+1,0) -> 82 | E4713: ='دليل الاصناف'!B84 -> 0
C4714: =IFERROR(VLOOKUP(ROWS(C$4629:$C4714),$D$4629:$E$6217,2,FALSE),"") -> 0 | D4714: =IF(ISNUMBER(SEARCH($H$1,E4714)),MAXA(D$4628:$D4713)+1,0) -> 83 | E4714: ='دليل الاصناف'!B85 -> 0
C4715: =IFERROR(VLOOKUP(ROWS(C$4629:$C4715),$D$4629:$E$6217,2,FALSE),"") -> 0 | D4715: =IF(ISNUMBER(SEARCH($H$1,E4715)),MAXA(D$4628:$D4714)+1,0) -> 84 | E4715: ='دليل الاصناف'!B86 -> 0
C4716: =IFERROR(VLOOKUP(ROWS(C$4629:$C4716),$D$4629:$E$6217,2,FALSE),"") -> 0 | D4716: =IF(ISNUMBER(SEARCH($H$1,E4716)),MAXA(D$4628:$D4715)+1,0) -> 85 | E4716: ='دليل الاصناف'!B87 -> 0
C4717: =IFERROR(VLOOKUP(ROWS(C$4629:$C4717),$D$4629:$E$6217,2,FALSE),"") -> 0 | D4717: =IF(ISNUMBER(SEARCH($H$1,E4717)),MAXA(D$4628:$D4716)+1,0) -> 86 | E4717: ='دليل الاصناف'!B88 -> 0
C4718: =IFERROR(VLOOKUP(ROWS(C$4629:$C4718),$D$4629:$E$6217,2,FALSE),"") -> 0 | D4718: =IF(ISNUMBER(SEARCH($H$1,E4718)),MAXA(D$4628:$D4717)+1,0) -> 87 | E4718: ='دليل الاصناف'!B89 -> 0
C4719: =IFERROR(VLOOKUP(ROWS(C$4629:$C4719),$D$4629:$E$6217,2,FALSE),"") -> 0 | D4719: =IF(ISNUMBER(SEARCH($H$1,E4719)),MAXA(D$4628:$D4718)+1,0) -> 88 | E4719: ='دليل الاصناف'!B90 -> 0
C4720: =IFERROR(VLOOKUP(ROWS(C$4629:$C4720),$D$4629:$E$6217,2,FALSE),"") -> 0 | D4720: =IF(ISNUMBER(SEARCH($H$1,E4720)),MAXA(D$4628:$D4719)+1,0) -> 89 | E4720: ='دليل الاصناف'!B91 -> 0
C4721: =IFERROR(VLOOKUP(ROWS(C$4629:$C4721),$D$4629:$E$6217,2,FALSE),"") -> 0 | D4721: =IF(ISNUMBER(SEARCH($H$1,E4721)),MAXA(D$4628:$D4720)+1,0) -> 90 | E4721: ='دليل الاصناف'!B92 -> 0
C4722: =IFERROR(VLOOKUP(ROWS(C$4629:$C4722),$D$4629:$E$6217,2,FALSE),"") -> 0 | D4722: =IF(ISNUMBER(SEARCH($H$1,E4722)),MAXA(D$4628:$D4721)+1,0) -> 91 | E4722: ='دليل الاصناف'!B93 -> 0
C4723: =IFERROR(VLOOKUP(ROWS(C$4629:$C4723),$D$4629:$E$6217,2,FALSE),"") -> 0 | D4723: =IF(ISNUMBER(SEARCH($H$1,E4723)),MAXA(D$4628:$D4722)+1,0) -> 92 | E4723: ='دليل الاصناف'!B94 -> 0
C4724: =IFERROR(VLOOKUP(ROWS(C$4629:$C4724),$D$4629:$E$6217,2,FALSE),"") -> 0 | D4724: =IF(ISNUMBER(SEARCH($H$1,E4724)),MAXA(D$4628:$D4723)+1,0) -> 93 | E4724: ='دليل الاصناف'!B95 -> 0
C4725: =IFERROR(VLOOKUP(ROWS(C$4629:$C4725),$D$4629:$E$6217,2,FALSE),"") -> 0 | D4725: =IF(ISNUMBER(SEARCH($H$1,E4725)),MAXA(D$4628:$D4724)+1,0) -> 94 | E4725: ='دليل الاصناف'!B96 -> 0
C4726: =IFERROR(VLOOKUP(ROWS(C$4629:$C4726),$D$4629:$E$6217,2,FALSE),"") -> 0 | D4726: =IF(ISNUMBER(SEARCH($H$1,E4726)),MAXA(D$4628:$D4725)+1,0) -> 95 | E4726: ='دليل الاصناف'!B97 -> 0
C4727: =IFERROR(VLOOKUP(ROWS(C$4629:$C4727),$D$4629:$E$6217,2,FALSE),"") -> 0 | D4727: =IF(ISNUMBER(SEARCH($H$1,E4727)),MAXA(D$4628:$D4726)+1,0) -> 96 | E4727: ='دليل الاصناف'!B98 -> 0
C4728: =IFERROR(VLOOKUP(ROWS(C$4629:$C4728),$D$4629:$E$6217,2,FALSE),"") -> 0 | D4728: =IF(ISNUMBER(SEARCH($H$1,E4728)),MAXA(D$4628:$D4727)+1,0) -> 97 | E4728: ='دليل الاصناف'!B99 -> 0
C4729: =IFERROR(VLOOKUP(ROWS(C$4629:$C4729),$D$4629:$E$6217,2,FALSE),"") -> 0 | D4729: =IF(ISNUMBER(SEARCH($H$1,E4729)),MAXA(D$4628:$D4728)+1,0) -> 98 | E4729: ='دليل الاصناف'!B100 -> 0
C4730: =IFERROR(VLOOKUP(ROWS(C$4629:$C4730),$D$4629:$E$6217,2,FALSE),"") -> 0 | D4730: =IF(ISNUMBER(SEARCH($H$1,E4730)),MAXA(D$4628:$D4729)+1,0) -> 99 | E4730: ='دليل الاصناف'!B101 -> 0
C4731: =IFERROR(VLOOKUP(ROWS(C$4629:$C4731),$D$4629:$E$6217,2,FALSE),"") -> 0 | D4731: =IF(ISNUMBER(SEARCH($H$1,E4731)),MAXA(D$4628:$D4730)+1,0) -> 100 | E4731: ='دليل الاصناف'!B102 -> 0
C4732: =IFERROR(VLOOKUP(ROWS(C$4629:$C4732),$D$4629:$E$6217,2,FALSE),"") -> 0 | D4732: =IF(ISNUMBER(SEARCH($H$1,E4732)),MAXA(D$4628:$D4731)+1,0) -> 101 | E4732: ='دليل الاصناف'!B103 -> 0
C4733: =IFERROR(VLOOKUP(ROWS(C$4629:$C4733),$D$4629:$E$6217,2,FALSE),"") -> 0 | D4733: =IF(ISNUMBER(SEARCH($H$1,E4733)),MAXA(D$4628:$D4732)+1,0) -> 102 | E4733: ='دليل الاصناف'!B104 -> 0
C4734: =IFERROR(VLOOKUP(ROWS(C$4629:$C4734),$D$4629:$E$6217,2,FALSE),"") -> 0 | D4734: =IF(ISNUMBER(SEARCH($H$1,E4734)),MAXA(D$4628:$D4733)+1,0) -> 103 | E4734: ='دليل الاصناف'!B105 -> 0
C4735: =IFERROR(VLOOKUP(ROWS(C$4629:$C4735),$D$4629:$E$6217,2,FALSE),"") -> 0 | D4735: =IF(ISNUMBER(SEARCH($H$1,E4735)),MAXA(D$4628:$D4734)+1,0) -> 104 | E4735: ='دليل الاصناف'!B106 -> 0
C4736: =IFERROR(VLOOKUP(ROWS(C$4629:$C4736),$D$4629:$E$6217,2,FALSE),"") -> 0 | D4736: =IF(ISNUMBER(SEARCH($H$1,E4736)),MAXA(D$4628:$D4735)+1,0) -> 105 | E4736: ='دليل الاصناف'!B107 -> 0
C4737: =IFERROR(VLOOKUP(ROWS(C$4629:$C4737),$D$4629:$E$6217,2,FALSE),"") -> 0 | D4737: =IF(ISNUMBER(SEARCH($H$1,E4737)),MAXA(D$4628:$D4736)+1,0) -> 106 | E4737: ='دليل الاصناف'!B108 -> 0
C4738: =IFERROR(VLOOKUP(ROWS(C$4629:$C4738),$D$4629:$E$6217,2,FALSE),"") -> 0 | D4738: =IF(ISNUMBER(SEARCH($H$1,E4738)),MAXA(D$4628:$D4737)+1,0) -> 107 | E4738: ='دليل الاصناف'!B109 -> 0
C4739: =IFERROR(VLOOKUP(ROWS(C$4629:$C4739),$D$4629:$E$6217,2,FALSE),"") -> 0 | D4739: =IF(ISNUMBER(SEARCH($H$1,E4739)),MAXA(D$4628:$D4738)+1,0) -> 108 | E4739: ='دليل الاصناف'!B110 -> 0
C4740: =IFERROR(VLOOKUP(ROWS(C$4629:$C4740),$D$4629:$E$6217,2,FALSE),"") -> 0 | D4740: =IF(ISNUMBER(SEARCH($H$1,E4740)),MAXA(D$4628:$D4739)+1,0) -> 109 | E4740: ='دليل الاصناف'!B111 -> 0
C4741: =IFERROR(VLOOKUP(ROWS(C$4629:$C4741),$D$4629:$E$6217,2,FALSE),"") -> 0 | D4741: =IF(ISNUMBER(SEARCH($H$1,E4741)),MAXA(D$4628:$D4740)+1,0) -> 110 | E4741: ='دليل الاصناف'!B112 -> 0
C4742: =IFERROR(VLOOKUP(ROWS(C$4629:$C4742),$D$4629:$E$6217,2,FALSE),"") -> 0 | D4742: =IF(ISNUMBER(SEARCH($H$1,E4742)),MAXA(D$4628:$D4741)+1,0) -> 111 | E4742: ='دليل الاصناف'!B113 -> 0
C4743: =IFERROR(VLOOKUP(ROWS(C$4629:$C4743),$D$4629:$E$6217,2,FALSE),"") -> 0 | D4743: =IF(ISNUMBER(SEARCH($H$1,E4743)),MAXA(D$4628:$D4742)+1,0) -> 112 | E4743: ='دليل الاصناف'!B114 -> 0
C4744: =IFERROR(VLOOKUP(ROWS(C$4629:$C4744),$D$4629:$E$6217,2,FALSE),"") -> 0 | D4744: =IF(ISNUMBER(SEARCH($H$1,E4744)),MAXA(D$4628:$D4743)+1,0) -> 113 | E4744: ='دليل الاصناف'!B115 -> 0
C4745: =IFERROR(VLOOKUP(ROWS(C$4629:$C4745),$D$4629:$E$6217,2,FALSE),"") -> 0 | D4745: =IF(ISNUMBER(SEARCH($H$1,E4745)),MAXA(D$4628:$D4744)+1,0) -> 114 | E4745: ='دليل الاصناف'!B116 -> 0
C4746: =IFERROR(VLOOKUP(ROWS(C$4629:$C4746),$D$4629:$E$6217,2,FALSE),"") -> 0 | D4746: =IF(ISNUMBER(SEARCH($H$1,E4746)),MAXA(D$4628:$D4745)+1,0) -> 115 | E4746: ='دليل الاصناف'!B117 -> 0
C4747: =IFERROR(VLOOKUP(ROWS(C$4629:$C4747),$D$4629:$E$6217,2,FALSE),"") -> 0 | D4747: =IF(ISNUMBER(SEARCH($H$1,E4747)),MAXA(D$4628:$D4746)+1,0) -> 116 | E4747: ='دليل الاصناف'!B118 -> 0
C4748: =IFERROR(VLOOKUP(ROWS(C$4629:$C4748),$D$4629:$E$6217,2,FALSE),"") -> 0 | D4748: =IF(ISNUMBER(SEARCH($H$1,E4748)),MAXA(D$4628:$D4747)+1,0) -> 117 | E4748: ='دليل الاصناف'!B119 -> 0
C4749: =IFERROR(VLOOKUP(ROWS(C$4629:$C4749),$D$4629:$E$6217,2,FALSE),"") -> 0 | D4749: =IF(ISNUMBER(SEARCH($H$1,E4749)),MAXA(D$4628:$D4748)+1,0) -> 118 | E4749: ='دليل الاصناف'!B120 -> 0
C4750: =IFERROR(VLOOKUP(ROWS(C$4629:$C4750),$D$4629:$E$6217,2,FALSE),"") -> 0 | D4750: =IF(ISNUMBER(SEARCH($H$1,E4750)),MAXA(D$4628:$D4749)+1,0) -> 119 | E4750: ='دليل الاصناف'!B121 -> 0
C4751: =IFERROR(VLOOKUP(ROWS(C$4629:$C4751),$D$4629:$E$6217,2,FALSE),"") -> 0 | D4751: =IF(ISNUMBER(SEARCH($H$1,E4751)),MAXA(D$4628:$D4750)+1,0) -> 120 | E4751: ='دليل الاصناف'!B122 -> 0
C4752: =IFERROR(VLOOKUP(ROWS(C$4629:$C4752),$D$4629:$E$6217,2,FALSE),"") -> 0 | D4752: =IF(ISNUMBER(SEARCH($H$1,E4752)),MAXA(D$4628:$D4751)+1,0) -> 121 | E4752: ='دليل الاصناف'!B123 -> 0
C4753: =IFERROR(VLOOKUP(ROWS(C$4629:$C4753),$D$4629:$E$6217,2,FALSE),"") -> 0 | D4753: =IF(ISNUMBER(SEARCH($H$1,E4753)),MAXA(D$4628:$D4752)+1,0) -> 122 | E4753: ='دليل الاصناف'!B124 -> 0
C4754: =IFERROR(VLOOKUP(ROWS(C$4629:$C4754),$D$4629:$E$6217,2,FALSE),"") -> 0 | D4754: =IF(ISNUMBER(SEARCH($H$1,E4754)),MAXA(D$4628:$D4753)+1,0) -> 123 | E4754: ='دليل الاصناف'!B125 -> 0
C4755: =IFERROR(VLOOKUP(ROWS(C$4629:$C4755),$D$4629:$E$6217,2,FALSE),"") -> 0 | D4755: =IF(ISNUMBER(SEARCH($H$1,E4755)),MAXA(D$4628:$D4754)+1,0) -> 124 | E4755: ='دليل الاصناف'!B126 -> 0
C4756: =IFERROR(VLOOKUP(ROWS(C$4629:$C4756),$D$4629:$E$6217,2,FALSE),"") -> 0 | D4756: =IF(ISNUMBER(SEARCH($H$1,E4756)),MAXA(D$4628:$D4755)+1,0) -> 125 | E4756: ='دليل الاصناف'!B127 -> 0
C4757: =IFERROR(VLOOKUP(ROWS(C$4629:$C4757),$D$4629:$E$6217,2,FALSE),"") -> 0 | D4757: =IF(ISNUMBER(SEARCH($H$1,E4757)),MAXA(D$4628:$D4756)+1,0) -> 126 | E4757: ='دليل الاصناف'!B128 -> 0
C4758: =IFERROR(VLOOKUP(ROWS(C$4629:$C4758),$D$4629:$E$6217,2,FALSE),"") -> 0 | D4758: =IF(ISNUMBER(SEARCH($H$1,E4758)),MAXA(D$4628:$D4757)+1,0) -> 127 | E4758: ='دليل الاصناف'!B129 -> 0 | F4758: =OFFSET($C$4629,,,COUNTIF($C$4629:$C$6217,"?*")) -> 
C4759: =IFERROR(VLOOKUP(ROWS(C$4629:$C4759),$D$4629:$E$6217,2,FALSE),"") -> 0 | D4759: =IF(ISNUMBER(SEARCH($H$1,E4759)),MAXA(D$4628:$D4758)+1,0) -> 128 | E4759: ='دليل الاصناف'!B130 -> 0
C4760: =IFERROR(VLOOKUP(ROWS(C$4629:$C4760),$D$4629:$E$6217,2,FALSE),"") -> 0 | D4760: =IF(ISNUMBER(SEARCH($H$1,E4760)),MAXA(D$4628:$D4759)+1,0) -> 129 | E4760: ='دليل الاصناف'!B131 -> 0
C4761: =IFERROR(VLOOKUP(ROWS(C$4629:$C4761),$D$4629:$E$6217,2,FALSE),"") -> 0 | D4761: =IF(ISNUMBER(SEARCH($H$1,E4761)),MAXA(D$4628:$D4760)+1,0) -> 130 | E4761: ='دليل الاصناف'!B132 -> 0
C4762: =IFERROR(VLOOKUP(ROWS(C$4629:$C4762),$D$4629:$E$6217,2,FALSE),"") -> 0 | D4762: =IF(ISNUMBER(SEARCH($H$1,E4762)),MAXA(D$4628:$D4761)+1,0) -> 131 | E4762: ='دليل الاصناف'!B133 -> 0
C4763: =IFERROR(VLOOKUP(ROWS(C$4629:$C4763),$D$4629:$E$6217,2,FALSE),"") -> 0 | D4763: =IF(ISNUMBER(SEARCH($H$1,E4763)),MAXA(D$4628:$D4762)+1,0) -> 132 | E4763: ='دليل الاصناف'!B134 -> 0
C4764: =IFERROR(VLOOKUP(ROWS(C$4629:$C4764),$D$4629:$E$6217,2,FALSE),"") -> 0 | D4764: =IF(ISNUMBER(SEARCH($H$1,E4764)),MAXA(D$4628:$D4763)+1,0) -> 133 | E4764: ='دليل الاصناف'!B135 -> 0
C4765: =IFERROR(VLOOKUP(ROWS(C$4629:$C4765),$D$4629:$E$6217,2,FALSE),"") -> 0 | D4765: =IF(ISNUMBER(SEARCH($H$1,E4765)),MAXA(D$4628:$D4764)+1,0) -> 134 | E4765: ='دليل الاصناف'!B136 -> 0
C4766: =IFERROR(VLOOKUP(ROWS(C$4629:$C4766),$D$4629:$E$6217,2,FALSE),"") -> 0 | D4766: =IF(ISNUMBER(SEARCH($H$1,E4766)),MAXA(D$4628:$D4765)+1,0) -> 135 | E4766: ='دليل الاصناف'!B137 -> 0
C4767: =IFERROR(VLOOKUP(ROWS(C$4629:$C4767),$D$4629:$E$6217,2,FALSE),"") -> 0 | D4767: =IF(ISNUMBER(SEARCH($H$1,E4767)),MAXA(D$4628:$D4766)+1,0) -> 136 | E4767: ='دليل الاصناف'!B138 -> 0
C4768: =IFERROR(VLOOKUP(ROWS(C$4629:$C4768),$D$4629:$E$6217,2,FALSE),"") -> 0 | D4768: =IF(ISNUMBER(SEARCH($H$1,E4768)),MAXA(D$4628:$D4767)+1,0) -> 137 | E4768: ='دليل الاصناف'!B139 -> 0
C4769: =IFERROR(VLOOKUP(ROWS(C$4629:$C4769),$D$4629:$E$6217,2,FALSE),"") -> 0 | D4769: =IF(ISNUMBER(SEARCH($H$1,E4769)),MAXA(D$4628:$D4768)+1,0) -> 138 | E4769: ='دليل الاصناف'!B140 -> 0
C4770: =IFERROR(VLOOKUP(ROWS(C$4629:$C4770),$D$4629:$E$6217,2,FALSE),"") -> 0 | D4770: =IF(ISNUMBER(SEARCH($H$1,E4770)),MAXA(D$4628:$D4769)+1,0) -> 139 | E4770: ='دليل الاصناف'!B141 -> 0
C4771: =IFERROR(VLOOKUP(ROWS(C$4629:$C4771),$D$4629:$E$6217,2,FALSE),"") -> 0 | D4771: =IF(ISNUMBER(SEARCH($H$1,E4771)),MAXA(D$4628:$D4770)+1,0) -> 140 | E4771: ='دليل الاصناف'!B142 -> 0
C4772: =IFERROR(VLOOKUP(ROWS(C$4629:$C4772),$D$4629:$E$6217,2,FALSE),"") -> 0 | D4772: =IF(ISNUMBER(SEARCH($H$1,E4772)),MAXA(D$4628:$D4771)+1,0) -> 141 | E4772: ='دليل الاصناف'!B143 -> 0
C4773: =IFERROR(VLOOKUP(ROWS(C$4629:$C4773),$D$4629:$E$6217,2,FALSE),"") -> 0 | D4773: =IF(ISNUMBER(SEARCH($H$1,E4773)),MAXA(D$4628:$D4772)+1,0) -> 142 | E4773: ='دليل الاصناف'!B144 -> 0
C4774: =IFERROR(VLOOKUP(ROWS(C$4629:$C4774),$D$4629:$E$6217,2,FALSE),"") -> 0 | D4774: =IF(ISNUMBER(SEARCH($H$1,E4774)),MAXA(D$4628:$D4773)+1,0) -> 143 | E4774: ='دليل الاصناف'!B145 -> 0
C4775: =IFERROR(VLOOKUP(ROWS(C$4629:$C4775),$D$4629:$E$6217,2,FALSE),"") -> 0 | D4775: =IF(ISNUMBER(SEARCH($H$1,E4775)),MAXA(D$4628:$D4774)+1,0) -> 144 | E4775: ='دليل الاصناف'!B146 -> 0
C4776: =IFERROR(VLOOKUP(ROWS(C$4629:$C4776),$D$4629:$E$6217,2,FALSE),"") -> 0 | D4776: =IF(ISNUMBER(SEARCH($H$1,E4776)),MAXA(D$4628:$D4775)+1,0) -> 145 | E4776: ='دليل الاصناف'!B147 -> 0
C4777: =IFERROR(VLOOKUP(ROWS(C$4629:$C4777),$D$4629:$E$6217,2,FALSE),"") -> 0 | D4777: =IF(ISNUMBER(SEARCH($H$1,E4777)),MAXA(D$4628:$D4776)+1,0) -> 146 | E4777: ='دليل الاصناف'!B148 -> 0
C4778: =IFERROR(VLOOKUP(ROWS(C$4629:$C4778),$D$4629:$E$6217,2,FALSE),"") -> 0 | D4778: =IF(ISNUMBER(SEARCH($H$1,E4778)),MAXA(D$4628:$D4777)+1,0) -> 147 | E4778: ='دليل الاصناف'!B149 -> 0
C4779: =IFERROR(VLOOKUP(ROWS(C$4629:$C4779),$D$4629:$E$6217,2,FALSE),"") -> 0 | D4779: =IF(ISNUMBER(SEARCH($H$1,E4779)),MAXA(D$4628:$D4778)+1,0) -> 148 | E4779: ='دليل الاصناف'!B150 -> 0
C4780: =IFERROR(VLOOKUP(ROWS(C$4629:$C4780),$D$4629:$E$6217,2,FALSE),"") -> 0 | D4780: =IF(ISNUMBER(SEARCH($H$1,E4780)),MAXA(D$4628:$D4779)+1,0) -> 149 | E4780: ='دليل الاصناف'!B151 -> 0
C4781: =IFERROR(VLOOKUP(ROWS(C$4629:$C4781),$D$4629:$E$6217,2,FALSE),"") -> 0 | D4781: =IF(ISNUMBER(SEARCH($H$1,E4781)),MAXA(D$4628:$D4780)+1,0) -> 150 | E4781: ='دليل الاصناف'!B152 -> 0
C4782: =IFERROR(VLOOKUP(ROWS(C$4629:$C4782),$D$4629:$E$6217,2,FALSE),"") -> 0 | D4782: =IF(ISNUMBER(SEARCH($H$1,E4782)),MAXA(D$4628:$D4781)+1,0) -> 151 | E4782: ='دليل الاصناف'!B153 -> 0
C4783: =IFERROR(VLOOKUP(ROWS(C$4629:$C4783),$D$4629:$E$6217,2,FALSE),"") -> 0 | D4783: =IF(ISNUMBER(SEARCH($H$1,E4783)),MAXA(D$4628:$D4782)+1,0) -> 152 | E4783: ='دليل الاصناف'!B154 -> 0
C4784: =IFERROR(VLOOKUP(ROWS(C$4629:$C4784),$D$4629:$E$6217,2,FALSE),"") -> 0 | D4784: =IF(ISNUMBER(SEARCH($H$1,E4784)),MAXA(D$4628:$D4783)+1,0) -> 153 | E4784: ='دليل الاصناف'!B155 -> 0
C4785: =IFERROR(VLOOKUP(ROWS(C$4629:$C4785),$D$4629:$E$6217,2,FALSE),"") -> 0 | D4785: =IF(ISNUMBER(SEARCH($H$1,E4785)),MAXA(D$4628:$D4784)+1,0) -> 154 | E4785: ='دليل الاصناف'!B156 -> 0
C4786: =IFERROR(VLOOKUP(ROWS(C$4629:$C4786),$D$4629:$E$6217,2,FALSE),"") -> 0 | D4786: =IF(ISNUMBER(SEARCH($H$1,E4786)),MAXA(D$4628:$D4785)+1,0) -> 155 | E4786: ='دليل الاصناف'!B157 -> 0
C4787: =IFERROR(VLOOKUP(ROWS(C$4629:$C4787),$D$4629:$E$6217,2,FALSE),"") -> 0 | D4787: =IF(ISNUMBER(SEARCH($H$1,E4787)),MAXA(D$4628:$D4786)+1,0) -> 156 | E4787: ='دليل الاصناف'!B158 -> 0
C4788: =IFERROR(VLOOKUP(ROWS(C$4629:$C4788),$D$4629:$E$6217,2,FALSE),"") -> 0 | D4788: =IF(ISNUMBER(SEARCH($H$1,E4788)),MAXA(D$4628:$D4787)+1,0) -> 157 | E4788: ='دليل الاصناف'!B159 -> 0
C4789: =IFERROR(VLOOKUP(ROWS(C$4629:$C4789),$D$4629:$E$6217,2,FALSE),"") -> 0 | D4789: =IF(ISNUMBER(SEARCH($H$1,E4789)),MAXA(D$4628:$D4788)+1,0) -> 158 | E4789: ='دليل الاصناف'!B160 -> 0
C4790: =IFERROR(VLOOKUP(ROWS(C$4629:$C4790),$D$4629:$E$6217,2,FALSE),"") -> 0 | D4790: =IF(ISNUMBER(SEARCH($H$1,E4790)),MAXA(D$4628:$D4789)+1,0) -> 159 | E4790: ='دليل الاصناف'!B161 -> 0
C4791: =IFERROR(VLOOKUP(ROWS(C$4629:$C4791),$D$4629:$E$6217,2,FALSE),"") -> 0 | D4791: =IF(ISNUMBER(SEARCH($H$1,E4791)),MAXA(D$4628:$D4790)+1,0) -> 160 | E4791: ='دليل الاصناف'!B162 -> 0
C4792: =IFERROR(VLOOKUP(ROWS(C$4629:$C4792),$D$4629:$E$6217,2,FALSE),"") -> 0 | D4792: =IF(ISNUMBER(SEARCH($H$1,E4792)),MAXA(D$4628:$D4791)+1,0) -> 161 | E4792: ='دليل الاصناف'!B163 -> 0
C4793: =IFERROR(VLOOKUP(ROWS(C$4629:$C4793),$D$4629:$E$6217,2,FALSE),"") -> 0 | D4793: =IF(ISNUMBER(SEARCH($H$1,E4793)),MAXA(D$4628:$D4792)+1,0) -> 162 | E4793: ='دليل الاصناف'!B164 -> 0
C4794: =IFERROR(VLOOKUP(ROWS(C$4629:$C4794),$D$4629:$E$6217,2,FALSE),"") -> 0 | D4794: =IF(ISNUMBER(SEARCH($H$1,E4794)),MAXA(D$4628:$D4793)+1,0) -> 163 | E4794: ='دليل الاصناف'!B165 -> 0
C4795: =IFERROR(VLOOKUP(ROWS(C$4629:$C4795),$D$4629:$E$6217,2,FALSE),"") -> 0 | D4795: =IF(ISNUMBER(SEARCH($H$1,E4795)),MAXA(D$4628:$D4794)+1,0) -> 164 | E4795: ='دليل الاصناف'!B166 -> 0
C4796: =IFERROR(VLOOKUP(ROWS(C$4629:$C4796),$D$4629:$E$6217,2,FALSE),"") -> 0 | D4796: =IF(ISNUMBER(SEARCH($H$1,E4796)),MAXA(D$4628:$D4795)+1,0) -> 165 | E4796: ='دليل الاصناف'!B167 -> 0
C4797: =IFERROR(VLOOKUP(ROWS(C$4629:$C4797),$D$4629:$E$6217,2,FALSE),"") -> 0 | D4797: =IF(ISNUMBER(SEARCH($H$1,E4797)),MAXA(D$4628:$D4796)+1,0) -> 166 | E4797: ='دليل الاصناف'!B168 -> 0
C4798: =IFERROR(VLOOKUP(ROWS(C$4629:$C4798),$D$4629:$E$6217,2,FALSE),"") -> 0 | D4798: =IF(ISNUMBER(SEARCH($H$1,E4798)),MAXA(D$4628:$D4797)+1,0) -> 167 | E4798: ='دليل الاصناف'!B169 -> 0
C4799: =IFERROR(VLOOKUP(ROWS(C$4629:$C4799),$D$4629:$E$6217,2,FALSE),"") -> 0 | D4799: =IF(ISNUMBER(SEARCH($H$1,E4799)),MAXA(D$4628:$D4798)+1,0) -> 168 | E4799: ='دليل الاصناف'!B170 -> 0
... 1418 more rows

Sheet منصرف
A1: التاريخ | B1: الصنف | C1: الكود | D1: الكمية المنصرفة | E1: سعر الوحدة | F1: القيمة | I1: البحث بالأسم
A2: =IFERROR(IF(B2<>"",IF(A2="",TODAY(),A2),""),"") ->  | B2: =IFERROR(VLOOKUP(G2,'دليل الاصناف'!$A$2:$D$399,2,0),"") ->  | C2: =IF(B2="","",SUMIF('دليل الاصناف'!$B$2:$B$17,B2,'دليل الاصناف'!$A$2:$A$17)) ->  | E2: =IFERROR(VLOOKUP(G2,'دليل الاصناف'!$A$2:$E$399,4,0),"") ->  | F2: =IFERROR(IF(B2="","",D2*E2),"") -> 
A3: =IFERROR(IF(B3<>"",IF(A3="",TODAY(),A3),""),"") ->  | B3: =IFERROR(VLOOKUP(G3,'دليل الاصناف'!$A$2:$D$399,2,0),"") ->  | C3: =IF(B3="","",SUMIF('دليل الاصناف'!$B$2:$B$17,B3,'دليل الاصناف'!$A$2:$A$17)) ->  | E3: =IFERROR(VLOOKUP(G3,'دليل الاصناف'!$A$2:$E$399,4,0),"") ->  | F3: =IFERROR(IF(B3="","",D3*E3),"") -> 
B4: =IFERROR(VLOOKUP(G4,'دليل الاصناف'!$A$2:$D$399,2,0),"") ->  | C4: =IF(B4="","",SUMIF('دليل الاصناف'!$B$2:$B$17,B4,'دليل الاصناف'!$A$2:$A$17)) ->  | E4: =IFERROR(VLOOKUP(G4,'دليل الاصناف'!$A$2:$E$399,4,0),"") -> 
B5: =IFERROR(VLOOKUP(G5,'دليل الاصناف'!$A$2:$D$399,2,0),"") ->  | C5: =IF(B5="","",SUMIF('دليل الاصناف'!$B$2:$B$17,B5,'دليل الاصناف'!$A$2:$A$17)) ->  | E5: =IFERROR(VLOOKUP(G5,'دليل الاصناف'!$A$2:$E$399,4,0),"") -> 
B6: =IFERROR(VLOOKUP(G6,'دليل الاصناف'!$A$2:$D$399,2,0),"") ->  | C6: =IF(B6="","",SUMIF('دليل الاصناف'!$B$2:$B$17,B6,'دليل الاصناف'!$A$2:$A$17)) ->  | E6: =IFERROR(VLOOKUP(G6,'دليل الاصناف'!$A$2:$E$399,4,0),"") -> 
B7: =IFERROR(VLOOKUP(G7,'دليل الاصناف'!$A$2:$D$399,2,0),"") ->  | C7: =IF(B7="","",SUMIF('دليل الاصناف'!$B$2:$B$17,B7,'دليل الاصناف'!$A$2:$A$17)) ->  | E7: =IFERROR(VLOOKUP(G7,'دليل الاصناف'!$A$2:$E$399,4,0),"") -> 
B8: =IFERROR(VLOOKUP(G8,'دليل الاصناف'!$A$2:$D$399,2,0),"") ->  | C8: =IF(B8="","",SUMIF('دليل الاصناف'!$B$2:$B$17,B8,'دليل الاصناف'!$A$2:$A$17)) ->  | E8: =IFERROR(VLOOKUP(G8,'دليل الاصناف'!$A$2:$E$399,4,0),"") -> 
B9: =IFERROR(VLOOKUP(G9,'دليل الاصناف'!$A$2:$D$399,2,0),"") ->  | C9: =IF(B9="","",SUMIF('دليل الاصناف'!$B$2:$B$17,B9,'دليل الاصناف'!$A$2:$A$17)) ->  | E9: =IFERROR(VLOOKUP(G9,'دليل الاصناف'!$A$2:$E$399,4,0),"") -> 
B10: =IFERROR(VLOOKUP(G10,'دليل الاصناف'!$A$2:$D$399,2,0),"") ->  | C10: =IF(B10="","",SUMIF('دليل الاصناف'!$B$2:$B$17,B10,'دليل الاصناف'!$A$2:$A$17)) ->  | E10: =IFERROR(VLOOKUP(G10,'دليل الاصناف'!$A$2:$E$399,4,0),"") -> 
B11: =IFERROR(VLOOKUP(G11,'دليل الاصناف'!$A$2:$D$399,2,0),"") ->  | C11: =IF(B11="","",SUMIF('دليل الاصناف'!$B$2:$B$17,B11,'دليل الاصناف'!$A$2:$A$17)) ->  | E11: =IFERROR(VLOOKUP(G11,'دليل الاصناف'!$A$2:$E$399,4,0),"") -> 
B12: =IFERROR(VLOOKUP(G12,'دليل الاصناف'!$A$2:$D$399,2,0),"") ->  | C12: =IF(B12="","",SUMIF('دليل الاصناف'!$B$2:$B$17,B12,'دليل الاصناف'!$A$2:$A$17)) ->  | E12: =IFERROR(VLOOKUP(G12,'دليل الاصناف'!$A$2:$E$399,4,0),"") -> 
B13: =IFERROR(VLOOKUP(G13,'دليل الاصناف'!$A$2:$D$399,2,0),"") ->  | C13: =IF(B13="","",SUMIF('دليل الاصناف'!$B$2:$B$17,B13,'دليل الاصناف'!$A$2:$A$17)) ->  | E13: =IFERROR(VLOOKUP(G13,'دليل الاصناف'!$A$2:$E$399,4,0),"") -> 
B14: =IFERROR(VLOOKUP(G14,'دليل الاصناف'!$A$2:$D$399,2,0),"") ->  | C14: =IF(B14="","",SUMIF('دليل الاصناف'!$B$2:$B$17,B14,'دليل الاصناف'!$A$2:$A$17)) ->  | E14: =IFERROR(VLOOKUP(G14,'دليل الاصناف'!$A$2:$E$399,4,0),"") -> 
B15: =IFERROR(VLOOKUP(G15,'دليل الاصناف'!$A$2:$D$399,2,0),"") ->  | C15: =IF(B15="","",SUMIF('دليل الاصناف'!$B$2:$B$17,B15,'دليل الاصناف'!$A$2:$A$17)) ->  | E15: =IFERROR(VLOOKUP(G15,'دليل الاصناف'!$A$2:$E$399,4,0),"") -> 
B16: =IFERROR(VLOOKUP(G16,'دليل الاصناف'!$A$2:$D$399,2,0),"") ->  | C16: =IF(B16="","",SUMIF('دليل الاصناف'!$B$2:$B$17,B16,'دليل الاصناف'!$A$2:$A$17)) ->  | E16: =IFERROR(VLOOKUP(G16,'دليل الاصناف'!$A$2:$E$399,4,0),"") -> 
B17: =IFERROR(VLOOKUP(G17,'دليل الاصناف'!$A$2:$D$399,2,0),"") ->  | C17: =IF(B17="","",SUMIF('دليل الاصناف'!$B$2:$B$17,B17,'دليل الاصناف'!$A$2:$A$17)) ->  | E17: =IFERROR(VLOOKUP(G17,'دليل الاصناف'!$A$2:$E$399,4,0),"") -> 
B18: =IFERROR(VLOOKUP(G18,'دليل الاصناف'!$A$2:$D$399,2,0),"") ->  | C18: =IF(B18="","",SUMIF('دليل الاصناف'!$B$2:$B$17,B18,'دليل الاصناف'!$A$2:$A$17)) ->  | E18: =IFERROR(VLOOKUP(G18,'دليل الاصناف'!$A$2:$E$399,4,0),"") -> 
B19: =IFERROR(VLOOKUP(G19,'دليل الاصناف'!$A$2:$D$399,2,0),"") ->  | C19: =IF(B19="","",SUMIF('دليل الاصناف'!$B$2:$B$17,B19,'دليل الاصناف'!$A$2:$A$17)) ->  | E19: =IFERROR(VLOOKUP(G19,'دليل الاصناف'!$A$2:$E$399,4,0),"") -> 
B20: =IFERROR(VLOOKUP(G20,'دليل الاصناف'!$A$2:$D$399,2,0),"") ->  | C20: =IF(B20="","",SUMIF('دليل الاصناف'!$B$2:$B$17,B20,'دليل الاصناف'!$A$2:$A$17)) ->  | E20: =IFERROR(VLOOKUP(G20,'دليل الاصناف'!$A$2:$E$399,4,0),"") -> 
B21: =IFERROR(VLOOKUP(G21,'دليل الاصناف'!$A$2:$D$399,2,0),"") ->  | C21: =IF(B21="","",SUMIF('دليل الاصناف'!$B$2:$B$17,B21,'دليل الاصناف'!$A$2:$A$17)) ->  | E21: =IFERROR(VLOOKUP(G21,'دليل الاصناف'!$A$2:$E$399,4,0),"") -> 
B22: =IFERROR(VLOOKUP(G22,'دليل الاصناف'!$A$2:$D$399,2,0),"") ->  | C22: =IF(B22="","",SUMIF('دليل الاصناف'!$B$2:$B$17,B22,'دليل الاصناف'!$A$2:$A$17)) ->  | E22: =IFERROR(VLOOKUP(G22,'دليل الاصناف'!$A$2:$E$399,4,0),"") -> 
B23: =IFERROR(VLOOKUP(G23,'دليل الاصناف'!$A$2:$D$399,2,0),"") ->  | C23: =IF(B23="","",SUMIF('دليل الاصناف'!$B$2:$B$17,B23,'دليل الاصناف'!$A$2:$A$17)) ->  | E23: =IFERROR(VLOOKUP(G23,'دليل الاصناف'!$A$2:$E$399,4,0),"") -> 
B24: =IFERROR(VLOOKUP(G24,'دليل الاصناف'!$A$2:$D$399,2,0),"") ->  | C24: =IF(B24="","",SUMIF('دليل الاصناف'!$B$2:$B$17,B24,'دليل الاصناف'!$A$2:$A$17)) ->  | E24: =IFERROR(VLOOKUP(G24,'دليل الاصناف'!$A$2:$E$399,4,0),"") -> 
B25: =IFERROR(VLOOKUP(G25,'دليل الاصناف'!$A$2:$D$399,2,0),"") ->  | C25: =IF(B25="","",SUMIF('دليل الاصناف'!$B$2:$B$17,B25,'دليل الاصناف'!$A$2:$A$17)) ->  | E25: =IFERROR(VLOOKUP(G25,'دليل الاصناف'!$A$2:$E$399,4,0),"") -> 
B26: =IFERROR(VLOOKUP(G26,'دليل الاصناف'!$A$2:$D$399,2,0),"") ->  | C26: =IF(B26="","",SUMIF('دليل الاصناف'!$B$2:$B$17,B26,'دليل الاصناف'!$A$2:$A$17)) ->  | E26: =IFERROR(VLOOKUP(G26,'دليل الاصناف'!$A$2:$E$399,4,0),"") -> 
B27: =IFERROR(VLOOKUP(G27,'دليل الاصناف'!$A$2:$D$399,2,0),"") ->  | C27: =IF(B27="","",SUMIF('دليل الاصناف'!$B$2:$B$17,B27,'دليل الاصناف'!$A$2:$A$17)) ->  | E27: =IFERROR(VLOOKUP(G27,'دليل الاصناف'!$A$2:$E$399,4,0),"") -> 
B28: =IFERROR(VLOOKUP(G28,'دليل الاصناف'!$A$2:$D$399,2,0),"") ->  | C28: =IF(B28="","",SUMIF('دليل الاصناف'!$B$2:$B$17,B28,'دليل الاصناف'!$A$2:$A$17)) ->  | E28: =IFERROR(VLOOKUP(G28,'دليل الاصناف'!$A$2:$E$399,4,0),"") -> 
B29: =IFERROR(VLOOKUP(G29,'دليل الاصناف'!$A$2:$D$399,2,0),"") ->  | C29: =IF(B29="","",SUMIF('دليل الاصناف'!$B$2:$B$17,B29,'دليل الاصناف'!$A$2:$A$17)) ->  | E29: =IFERROR(VLOOKUP(G29,'دليل الاصناف'!$A$2:$E$399,4,0),"") -> 
C4629: =IFERROR(VLOOKUP(ROWS(C4629:$C$4629),$D$4629:$E$6217,2,FALSE),"") -> كوتشي اكتيف | D4629: =IF(ISNUMBER(SEARCH($H$1,E4629)),MAXA(D4628:$D$4628)+1,0) -> 0 | E4629: ='دليل الاصناف'!#REF! ->  | F4629: =OFFSET($C$4629,,,COUNTIF($C$4629:$C$6217,"?*")) -> كوتشي اكتيف
C4630: =IFERROR(VLOOKUP(ROWS(C$4629:$C4630),$D$4629:$E$6217,2,FALSE),"") -> كوتشي بوما | D4630: =IF(ISNUMBER(SEARCH($H$1,E4630)),MAXA(D$4628:$D4629)+1,0) -> 1 | E4630: ='دليل الاصناف'!B2 -> كوتشي اكتيف | F4630: =OFFSET($C$4629,,,COUNTIF($C$4629:$C$6217,"?*")) -> كوتشي بوما
C4631: =IFERROR(VLOOKUP(ROWS(C$4629:$C4631),$D$4629:$E$6217,2,FALSE),"") -> شورت ليكرا | D4631: =IF(ISNUMBER(SEARCH($H$1,E4631)),MAXA(D$4628:$D4630)+1,0) -> 2 | E4631: ='دليل الاصناف'!B4 -> كوتشي بوما | F4631: شورت ليكرا
C4632: =IFERROR(VLOOKUP(ROWS(C$4629:$C4632),$D$4629:$E$6217,2,FALSE),"") -> شراب اديداس | D4632: =IF(ISNUMBER(SEARCH($H$1,E4632)),MAXA(D$4628:$D4631)+1,0) -> 3 | E4632: ='دليل الاصناف'!B5 -> شورت ليكرا | F4632: شراب اديداس
C4633: =IFERROR(VLOOKUP(ROWS(C$4629:$C4633),$D$4629:$E$6217,2,FALSE),"") -> تيشرت بولو XXL | D4633: =IF(ISNUMBER(SEARCH($H$1,E4633)),MAXA(D$4628:$D4632)+1,0) -> 4 | E4633: ='دليل الاصناف'!B6 -> شراب اديداس | F4633: تيشرت بولو XXL
C4634: =IFERROR(VLOOKUP(ROWS(C$4629:$C4634),$D$4629:$E$6217,2,FALSE),"") -> كوتشي اديداس | D4634: =IF(ISNUMBER(SEARCH($H$1,E4634)),MAXA(D$4628:$D4633)+1,0) -> 0 | E4634: ='دليل الاصناف'!#REF! ->  | F4634: كوتشي اديداس
C4635: =IFERROR(VLOOKUP(ROWS(C$4629:$C4635),$D$4629:$E$6217,2,FALSE),"") -> 0 | D4635: =IF(ISNUMBER(SEARCH($H$1,E4635)),MAXA(D$4628:$D4634)+1,0) -> 0 | E4635: ='دليل الاصناف'!#REF! -> 
C4636: =IFERROR(VLOOKUP(ROWS(C$4629:$C4636),$D$4629:$E$6217,2,FALSE),"") -> 0 | D4636: =IF(ISNUMBER(SEARCH($H$1,E4636)),MAXA(D$4628:$D4635)+1,0) -> 5 | E4636: ='دليل الاصناف'!B7 -> تيشرت بولو XXL
C4637: =IFERROR(VLOOKUP(ROWS(C$4629:$C4637),$D$4629:$E$6217,2,FALSE),"") -> 0 | D4637: =IF(ISNUMBER(SEARCH($H$1,E4637)),MAXA(D$4628:$D4636)+1,0) -> 6 | E4637: ='دليل الاصناف'!B8 -> كوتشي اديداس
C4638: =IFERROR(VLOOKUP(ROWS(C$4629:$C4638),$D$4629:$E$6217,2,FALSE),"") -> 0 | D4638: =IF(ISNUMBER(SEARCH($H$1,E4638)),MAXA(D$4628:$D4637)+1,0) -> 7 | E4638: ='دليل الاصناف'!B9 -> 0
C4639: =IFERROR(VLOOKUP(ROWS(C$4629:$C4639),$D$4629:$E$6217,2,FALSE),"") -> 0 | D4639: =IF(ISNUMBER(SEARCH($H$1,E4639)),MAXA(D$4628:$D4638)+1,0) -> 8 | E4639: ='دليل الاصناف'!B10 -> 0
C4640: =IFERROR(VLOOKUP(ROWS(C$4629:$C4640),$D$4629:$E$6217,2,FALSE),"") -> 0 | D4640: =IF(ISNUMBER(SEARCH($H$1,E4640)),MAXA(D$4628:$D4639)+1,0) -> 9 | E4640: ='دليل الاصناف'!B11 -> 0
C4641: =IFERROR(VLOOKUP(ROWS(C$4629:$C4641),$D$4629:$E$6217,2,FALSE),"") -> 0 | D4641: =IF(ISNUMBER(SEARCH($H$1,E4641)),MAXA(D$4628:$D4640)+1,0) -> 10 | E4641: ='دليل الاصناف'!B12 -> 0
C4642: =IFERROR(VLOOKUP(ROWS(C$4629:$C4642),$D$4629:$E$6217,2,FALSE),"") -> 0 | D4642: =IF(ISNUMBER(SEARCH($H$1,E4642)),MAXA(D$4628:$D4641)+1,0) -> 11 | E4642: ='دليل الاصناف'!B13 -> 0
C4643: =IFERROR(VLOOKUP(ROWS(C$4629:$C4643),$D$4629:$E$6217,2,FALSE),"") -> 0 | D4643: =IF(ISNUMBER(SEARCH($H$1,E4643)),MAXA(D$4628:$D4642)+1,0) -> 12 | E4643: ='دليل الاصناف'!B14 -> 0
C4644: =IFERROR(VLOOKUP(ROWS(C$4629:$C4644),$D$4629:$E$6217,2,FALSE),"") -> 0 | D4644: =IF(ISNUMBER(SEARCH($H$1,E4644)),MAXA(D$4628:$D4643)+1,0) -> 13 | E4644: ='دليل الاصناف'!B15 -> 0
C4645: =IFERROR(VLOOKUP(ROWS(C$4629:$C4645),$D$4629:$E$6217,2,FALSE),"") -> 0 | D4645: =IF(ISNUMBER(SEARCH($H$1,E4645)),MAXA(D$4628:$D4644)+1,0) -> 14 | E4645: ='دليل الاصناف'!B16 -> 0
C4646: =IFERROR(VLOOKUP(ROWS(C$4629:$C4646),$D$4629:$E$6217,2,FALSE),"") -> 0 | D4646: =IF(ISNUMBER(SEARCH($H$1,E4646)),MAXA(D$4628:$D4645)+1,0) -> 15 | E4646: ='دليل الاصناف'!B17 -> 0
C4647: =IFERROR(VLOOKUP(ROWS(C$4629:$C4647),$D$4629:$E$6217,2,FALSE),"") -> 0 | D4647: =IF(ISNUMBER(SEARCH($H$1,E4647)),MAXA(D$4628:$D4646)+1,0) -> 16 | E4647: ='دليل الاصناف'!B18 -> 0
C4648: =IFERROR(VLOOKUP(ROWS(C$4629:$C4648),$D$4629:$E$6217,2,FALSE),"") -> 0 | D4648: =IF(ISNUMBER(SEARCH($H$1,E4648)),MAXA(D$4628:$D4647)+1,0) -> 17 | E4648: ='دليل الاصناف'!B19 -> 0
C4649: =IFERROR(VLOOKUP(ROWS(C$4629:$C4649),$D$4629:$E$6217,2,FALSE),"") -> 0 | D4649: =IF(ISNUMBER(SEARCH($H$1,E4649)),MAXA(D$4628:$D4648)+1,0) -> 18 | E4649: ='دليل الاصناف'!B20 -> 0
C4650: =IFERROR(VLOOKUP(ROWS(C$4629:$C4650),$D$4629:$E$6217,2,FALSE),"") -> 0 | D4650: =IF(ISNUMBER(SEARCH($H$1,E4650)),MAXA(D$4628:$D4649)+1,0) -> 19 | E4650: ='دليل الاصناف'!B21 -> 0
C4651: =IFERROR(VLOOKUP(ROWS(C$4629:$C4651),$D$4629:$E$6217,2,FALSE),"") -> 0 | D4651: =IF(ISNUMBER(SEARCH($H$1,E4651)),MAXA(D$4628:$D4650)+1,0) -> 20 | E4651: ='دليل الاصناف'!B22 -> 0
C4652: =IFERROR(VLOOKUP(ROWS(C$4629:$C4652),$D$4629:$E$6217,2,FALSE),"") -> 0 | D4652: =IF(ISNUMBER(SEARCH($H$1,E4652)),MAXA(D$4628:$D4651)+1,0) -> 21 | E4652: ='دليل الاصناف'!B23 -> 0
C4653: =IFERROR(VLOOKUP(ROWS(C$4629:$C4653),$D$4629:$E$6217,2,FALSE),"") -> 0 | D4653: =IF(ISNUMBER(SEARCH($H$1,E4653)),MAXA(D$4628:$D4652)+1,0) -> 22 | E4653: ='دليل الاصناف'!B24 -> 0
C4654: =IFERROR(VLOOKUP(ROWS(C$4629:$C4654),$D$4629:$E$6217,2,FALSE),"") -> 0 | D4654: =IF(ISNUMBER(SEARCH($H$1,E4654)),MAXA(D$4628:$D4653)+1,0) -> 23 | E4654: ='دليل الاصناف'!B25 -> 0
C4655: =IFERROR(VLOOKUP(ROWS(C$4629:$C4655),$D$4629:$E$6217,2,FALSE),"") -> 0 | D4655: =IF(ISNUMBER(SEARCH($H$1,E4655)),MAXA(D$4628:$D4654)+1,0) -> 24 | E4655: ='دليل الاصناف'!B26 -> 0
C4656: =IFERROR(VLOOKUP(ROWS(C$4629:$C4656),$D$4629:$E$6217,2,FALSE),"") -> 0 | D4656: =IF(ISNUMBER(SEARCH($H$1,E4656)),MAXA(D$4628:$D4655)+1,0) -> 25 | E4656: ='دليل الاصناف'!B27 -> 0
C4657: =IFERROR(VLOOKUP(ROWS(C$4629:$C4657),$D$4629:$E$6217,2,FALSE),"") -> 0 | D4657: =IF(ISNUMBER(SEARCH($H$1,E4657)),MAXA(D$4628:$D4656)+1,0) -> 26 | E4657: ='دليل الاصناف'!B28 -> 0
C4658: =IFERROR(VLOOKUP(ROWS(C$4629:$C4658),$D$4629:$E$6217,2,FALSE),"") -> 0 | D4658: =IF(ISNUMBER(SEARCH($H$1,E4658)),MAXA(D$4628:$D4657)+1,0) -> 27 | E4658: ='دليل الاصناف'!B29 -> 0
C4659: =IFERROR(VLOOKUP(ROWS(C$4629:$C4659),$D$4629:$E$6217,2,FALSE),"") -> 0 | D4659: =IF(ISNUMBER(SEARCH($H$1,E4659)),MAXA(D$4628:$D4658)+1,0) -> 28 | E4659: ='دليل الاصناف'!B30 -> 0
C4660: =IFERROR(VLOOKUP(ROWS(C$4629:$C4660),$D$4629:$E$6217,2,FALSE),"") -> 0 | D4660: =IF(ISNUMBER(SEARCH($H$1,E4660)),MAXA(D$4628:$D4659)+1,0) -> 29 | E4660: ='دليل الاصناف'!B31 -> 0
C4661: =IFERROR(VLOOKUP(ROWS(C$4629:$C4661),$D$4629:$E$6217,2,FALSE),"") -> 0 | D4661: =IF(ISNUMBER(SEARCH($H$1,E4661)),MAXA(D$4628:$D4660)+1,0) -> 30 | E4661: ='دليل الاصناف'!B32 -> 0
C4662: =IFERROR(VLOOKUP(ROWS(C$4629:$C4662),$D$4629:$E$6217,2,FALSE),"") -> 0 | D4662: =IF(ISNUMBER(SEARCH($H$1,E4662)),MAXA(D$4628:$D4661)+1,0) -> 31 | E4662: ='دليل الاصناف'!B33 -> 0
C4663: =IFERROR(VLOOKUP(ROWS(C$4629:$C4663),$D$4629:$E$6217,2,FALSE),"") -> 0 | D4663: =IF(ISNUMBER(SEARCH($H$1,E4663)),MAXA(D$4628:$D4662)+1,0) -> 32 | E4663: ='دليل الاصناف'!B34 -> 0
C4664: =IFERROR(VLOOKUP(ROWS(C$4629:$C4664),$D$4629:$E$6217,2,FALSE),"") -> 0 | D4664: =IF(ISNUMBER(SEARCH($H$1,E4664)),MAXA(D$4628:$D4663)+1,0) -> 33 | E4664: ='دليل الاصناف'!B35 -> 0
C4665: =IFERROR(VLOOKUP(ROWS(C$4629:$C4665),$D$4629:$E$6217,2,FALSE),"") -> 0 | D4665: =IF(ISNUMBER(SEARCH($H$1,E4665)),MAXA(D$4628:$D4664)+1,0) -> 34 | E4665: ='دليل الاصناف'!B36 -> 0
C4666: =IFERROR(VLOOKUP(ROWS(C$4629:$C4666),$D$4629:$E$6217,2,FALSE),"") -> 0 | D4666: =IF(ISNUMBER(SEARCH($H$1,E4666)),MAXA(D$4628:$D4665)+1,0) -> 35 | E4666: ='دليل الاصناف'!B37 -> 0
C4667: =IFERROR(VLOOKUP(ROWS(C$4629:$C4667),$D$4629:$E$6217,2,FALSE),"") -> 0 | D4667: =IF(ISNUMBER(SEARCH($H$1,E4667)),MAXA(D$4628:$D4666)+1,0) -> 36 | E4667: ='دليل الاصناف'!B38 -> 0
C4668: =IFERROR(VLOOKUP(ROWS(C$4629:$C4668),$D$4629:$E$6217,2,FALSE),"") -> 0 | D4668: =IF(ISNUMBER(SEARCH($H$1,E4668)),MAXA(D$4628:$D4667)+1,0) -> 37 | E4668: ='دليل الاصناف'!B39 -> 0
C4669: =IFERROR(VLOOKUP(ROWS(C$4629:$C4669),$D$4629:$E$6217,2,FALSE),"") -> 0 | D4669: =IF(ISNUMBER(SEARCH($H$1,E4669)),MAXA(D$4628:$D4668)+1,0) -> 38 | E4669: ='دليل الاصناف'!B40 -> 0
C4670: =IFERROR(VLOOKUP(ROWS(C$4629:$C4670),$D$4629:$E$6217,2,FALSE),"") -> 0 | D4670: =IF(ISNUMBER(SEARCH($H$1,E4670)),MAXA(D$4628:$D4669)+1,0) -> 39 | E4670: ='دليل الاصناف'!B41 -> 0
C4671: =IFERROR(VLOOKUP(ROWS(C$4629:$C4671),$D$4629:$E$6217,2,FALSE),"") -> 0 | D4671: =IF(ISNUMBER(SEARCH($H$1,E4671)),MAXA(D$4628:$D4670)+1,0) -> 40 | E4671: ='دليل الاصناف'!B42 -> 0
C4672: =IFERROR(VLOOKUP(ROWS(C$4629:$C4672),$D$4629:$E$6217,2,FALSE),"") -> 0 | D4672: =IF(ISNUMBER(SEARCH($H$1,E4672)),MAXA(D$4628:$D4671)+1,0) -> 41 | E4672: ='دليل الاصناف'!B43 -> 0
C4673: =IFERROR(VLOOKUP(ROWS(C$4629:$C4673),$D$4629:$E$6217,2,FALSE),"") -> 0 | D4673: =IF(ISNUMBER(SEARCH($H$1,E4673)),MAXA(D$4628:$D4672)+1,0) -> 42 | E4673: ='دليل الاصناف'!B44 -> 0
C4674: =IFERROR(VLOOKUP(ROWS(C$4629:$C4674),$D$4629:$E$6217,2,FALSE),"") -> 0 | D4674: =IF(ISNUMBER(SEARCH($H$1,E4674)),MAXA(D$4628:$D4673)+1,0) -> 43 | E4674: ='دليل الاصناف'!B45 -> 0
C4675: =IFERROR(VLOOKUP(ROWS(C$4629:$C4675),$D$4629:$E$6217,2,FALSE),"") -> 0 | D4675: =IF(ISNUMBER(SEARCH($H$1,E4675)),MAXA(D$4628:$D4674)+1,0) -> 44 | E4675: ='دليل الاصناف'!B46 -> 0
C4676: =IFERROR(VLOOKUP(ROWS(C$4629:$C4676),$D$4629:$E$6217,2,FALSE),"") -> 0 | D4676: =IF(ISNUMBER(SEARCH($H$1,E4676)),MAXA(D$4628:$D4675)+1,0) -> 45 | E4676: ='دليل الاصناف'!B47 -> 0
C4677: =IFERROR(VLOOKUP(ROWS(C$4629:$C4677),$D$4629:$E$6217,2,FALSE),"") -> 0 | D4677: =IF(ISNUMBER(SEARCH($H$1,E4677)),MAXA(D$4628:$D4676)+1,0) -> 46 | E4677: ='دليل الاصناف'!B48 -> 0
C4678: =IFERROR(VLOOKUP(ROWS(C$4629:$C4678),$D$4629:$E$6217,2,FALSE),"") -> 0 | D4678: =IF(ISNUMBER(SEARCH($H$1,E4678)),MAXA(D$4628:$D4677)+1,0) -> 47 | E4678: ='دليل الاصناف'!B49 -> 0
C4679: =IFERROR(VLOOKUP(ROWS(C$4629:$C4679),$D$4629:$E$6217,2,FALSE),"") -> 0 | D4679: =IF(ISNUMBER(SEARCH($H$1,E4679)),MAXA(D$4628:$D4678)+1,0) -> 48 | E4679: ='دليل الاصناف'!B50 -> 0
C4680: =IFERROR(VLOOKUP(ROWS(C$4629:$C4680),$D$4629:$E$6217,2,FALSE),"") -> 0 | D4680: =IF(ISNUMBER(SEARCH($H$1,E4680)),MAXA(D$4628:$D4679)+1,0) -> 49 | E4680: ='دليل الاصناف'!B51 -> 0
C4681: =IFERROR(VLOOKUP(ROWS(C$4629:$C4681),$D$4629:$E$6217,2,FALSE),"") -> 0 | D4681: =IF(ISNUMBER(SEARCH($H$1,E4681)),MAXA(D$4628:$D4680)+1,0) -> 50 | E4681: ='دليل الاصناف'!B52 -> 0
C4682: =IFERROR(VLOOKUP(ROWS(C$4629:$C4682),$D$4629:$E$6217,2,FALSE),"") -> 0 | D4682: =IF(ISNUMBER(SEARCH($H$1,E4682)),MAXA(D$4628:$D4681)+1,0) -> 51 | E4682: ='دليل الاصناف'!B53 -> 0
C4683: =IFERROR(VLOOKUP(ROWS(C$4629:$C4683),$D$4629:$E$6217,2,FALSE),"") -> 0 | D4683: =IF(ISNUMBER(SEARCH($H$1,E4683)),MAXA(D$4628:$D4682)+1,0) -> 52 | E4683: ='دليل الاصناف'!B54 -> 0
C4684: =IFERROR(VLOOKUP(ROWS(C$4629:$C4684),$D$4629:$E$6217,2,FALSE),"") -> 0 | D4684: =IF(ISNUMBER(SEARCH($H$1,E4684)),MAXA(D$4628:$D4683)+1,0) -> 53 | E4684: ='دليل الاصناف'!B55 -> 0
C4685: =IFERROR(VLOOKUP(ROWS(C$4629:$C4685),$D$4629:$E$6217,2,FALSE),"") -> 0 | D4685: =IF(ISNUMBER(SEARCH($H$1,E4685)),MAXA(D$4628:$D4684)+1,0) -> 54 | E4685: ='دليل الاصناف'!B56 -> 0
C4686: =IFERROR(VLOOKUP(ROWS(C$4629:$C4686),$D$4629:$E$6217,2,FALSE),"") -> 0 | D4686: =IF(ISNUMBER(SEARCH($H$1,E4686)),MAXA(D$4628:$D4685)+1,0) -> 55 | E4686: ='دليل الاصناف'!B57 -> 0
C4687: =IFERROR(VLOOKUP(ROWS(C$4629:$C4687),$D$4629:$E$6217,2,FALSE),"") -> 0 | D4687: =IF(ISNUMBER(SEARCH($H$1,E4687)),MAXA(D$4628:$D4686)+1,0) -> 56 | E4687: ='دليل الاصناف'!B58 -> 0
C4688: =IFERROR(VLOOKUP(ROWS(C$4629:$C4688),$D$4629:$E$6217,2,FALSE),"") -> 0 | D4688: =IF(ISNUMBER(SEARCH($H$1,E4688)),MAXA(D$4628:$D4687)+1,0) -> 57 | E4688: ='دليل الاصناف'!B59 -> 0
C4689: =IFERROR(VLOOKUP(ROWS(C$4629:$C4689),$D$4629:$E$6217,2,FALSE),"") -> 0 | D4689: =IF(ISNUMBER(SEARCH($H$1,E4689)),MAXA(D$4628:$D4688)+1,0) -> 58 | E4689: ='دليل الاصناف'!B60 -> 0
C4690: =IFERROR(VLOOKUP(ROWS(C$4629:$C4690),$D$4629:$E$6217,2,FALSE),"") -> 0 | D4690: =IF(ISNUMBER(SEARCH($H$1,E4690)),MAXA(D$4628:$D4689)+1,0) -> 59 | E4690: ='دليل الاصناف'!B61 -> 0
C4691: =IFERROR(VLOOKUP(ROWS(C$4629:$C4691),$D$4629:$E$6217,2,FALSE),"") -> 0 | D4691: =IF(ISNUMBER(SEARCH($H$1,E4691)),MAXA(D$4628:$D4690)+1,0) -> 60 | E4691: ='دليل الاصناف'!B62 -> 0
C4692: =IFERROR(VLOOKUP(ROWS(C$4629:$C4692),$D$4629:$E$6217,2,FALSE),"") -> 0 | D4692: =IF(ISNUMBER(SEARCH($H$1,E4692)),MAXA(D$4628:$D4691)+1,0) -> 61 | E4692: ='دليل الاصناف'!B63 -> 0
C4693: =IFERROR(VLOOKUP(ROWS(C$4629:$C4693),$D$4629:$E$6217,2,FALSE),"") -> 0 | D4693: =IF(ISNUMBER(SEARCH($H$1,E4693)),MAXA(D$4628:$D4692)+1,0) -> 62 | E4693: ='دليل الاصناف'!B64 -> 0
C4694: =IFERROR(VLOOKUP(ROWS(C$4629:$C4694),$D$4629:$E$6217,2,FALSE),"") -> 0 | D4694: =IF(ISNUMBER(SEARCH($H$1,E4694)),MAXA(D$4628:$D4693)+1,0) -> 63 | E4694: ='دليل الاصناف'!B65 -> 0 | F4694: =OFFSET($C$4629,,,COUNTIF($C$4629:$C$6217,"?*")) -> 
C4695: =IFERROR(VLOOKUP(ROWS(C$4629:$C4695),$D$4629:$E$6217,2,FALSE),"") -> 0 | D4695: =IF(ISNUMBER(SEARCH($H$1,E4695)),MAXA(D$4628:$D4694)+1,0) -> 64 | E4695: ='دليل الاصناف'!B66 -> 0
C4696: =IFERROR(VLOOKUP(ROWS(C$4629:$C4696),$D$4629:$E$6217,2,FALSE),"") -> 0 | D4696: =IF(ISNUMBER(SEARCH($H$1,E4696)),MAXA(D$4628:$D4695)+1,0) -> 65 | E4696: ='دليل الاصناف'!B67 -> 0
C4697: =IFERROR(VLOOKUP(ROWS(C$4629:$C4697),$D$4629:$E$6217,2,FALSE),"") -> 0 | D4697: =IF(ISNUMBER(SEARCH($H$1,E4697)),MAXA(D$4628:$D4696)+1,0) -> 66 | E4697: ='دليل الاصناف'!B68 -> 0
C4698: =IFERROR(VLOOKUP(ROWS(C$4629:$C4698),$D$4629:$E$6217,2,FALSE),"") -> 0 | D4698: =IF(ISNUMBER(SEARCH($H$1,E4698)),MAXA(D$4628:$D4697)+1,0) -> 67 | E4698: ='دليل الاصناف'!B69 -> 0
C4699: =IFERROR(VLOOKUP(ROWS(C$4629:$C4699),$D$4629:$E$6217,2,FALSE),"") -> 0 | D4699: =IF(ISNUMBER(SEARCH($H$1,E4699)),MAXA(D$4628:$D4698)+1,0) -> 68 | E4699: ='دليل الاصناف'!B70 -> 0
C4700: =IFERROR(VLOOKUP(ROWS(C$4629:$C4700),$D$4629:$E$6217,2,FALSE),"") -> 0 | D4700: =IF(ISNUMBER(SEARCH($H$1,E4700)),MAXA(D$4628:$D4699)+1,0) -> 69 | E4700: ='دليل الاصناف'!B71 -> 0
C4701: =IFERROR(VLOOKUP(ROWS(C$4629:$C4701),$D$4629:$E$6217,2,FALSE),"") -> 0 | D4701: =IF(ISNUMBER(SEARCH($H$1,E4701)),MAXA(D$4628:$D4700)+1,0) -> 70 | E4701: ='دليل الاصناف'!B72 -> 0
C4702: =IFERROR(VLOOKUP(ROWS(C$4629:$C4702),$D$4629:$E$6217,2,FALSE),"") -> 0 | D4702: =IF(ISNUMBER(SEARCH($H$1,E4702)),MAXA(D$4628:$D4701)+1,0) -> 71 | E4702: ='دليل الاصناف'!B73 -> 0
C4703: =IFERROR(VLOOKUP(ROWS(C$4629:$C4703),$D$4629:$E$6217,2,FALSE),"") -> 0 | D4703: =IF(ISNUMBER(SEARCH($H$1,E4703)),MAXA(D$4628:$D4702)+1,0) -> 72 | E4703: ='دليل الاصناف'!B74 -> 0
C4704: =IFERROR(VLOOKUP(ROWS(C$4629:$C4704),$D$4629:$E$6217,2,FALSE),"") -> 0 | D4704: =IF(ISNUMBER(SEARCH($H$1,E4704)),MAXA(D$4628:$D4703)+1,0) -> 73 | E4704: ='دليل الاصناف'!B75 -> 0
C4705: =IFERROR(VLOOKUP(ROWS(C$4629:$C4705),$D$4629:$E$6217,2,FALSE),"") -> 0 | D4705: =IF(ISNUMBER(SEARCH($H$1,E4705)),MAXA(D$4628:$D4704)+1,0) -> 74 | E4705: ='دليل الاصناف'!B76 -> 0
C4706: =IFERROR(VLOOKUP(ROWS(C$4629:$C4706),$D$4629:$E$6217,2,FALSE),"") -> 0 | D4706: =IF(ISNUMBER(SEARCH($H$1,E4706)),MAXA(D$4628:$D4705)+1,0) -> 75 | E4706: ='دليل الاصناف'!B77 -> 0
C4707: =IFERROR(VLOOKUP(ROWS(C$4629:$C4707),$D$4629:$E$6217,2,FALSE),"") -> 0 | D4707: =IF(ISNUMBER(SEARCH($H$1,E4707)),MAXA(D$4628:$D4706)+1,0) -> 76 | E4707: ='دليل الاصناف'!B78 -> 0
C4708: =IFERROR(VLOOKUP(ROWS(C$4629:$C4708),$D$4629:$E$6217,2,FALSE),"") -> 0 | D4708: =IF(ISNUMBER(SEARCH($H$1,E4708)),MAXA(D$4628:$D4707)+1,0) -> 77 | E4708: ='دليل الاصناف'!B79 -> 0
C4709: =IFERROR(VLOOKUP(ROWS(C$4629:$C4709),$D$4629:$E$6217,2,FALSE),"") -> 0 | D4709: =IF(ISNUMBER(SEARCH($H$1,E4709)),MAXA(D$4628:$D4708)+1,0) -> 78 | E4709: ='دليل الاصناف'!B80 -> 0
C4710: =IFERROR(VLOOKUP(ROWS(C$4629:$C4710),$D$4629:$E$6217,2,FALSE),"") -> 0 | D4710: =IF(ISNUMBER(SEARCH($H$1,E4710)),MAXA(D$4628:$D4709)+1,0) -> 79 | E4710: ='دليل الاصناف'!B81 -> 0
C4711: =IFERROR(VLOOKUP(ROWS(C$4629:$C4711),$D$4629:$E$6217,2,FALSE),"") -> 0 | D4711: =IF(ISNUMBER(SEARCH($H$1,E4711)),MAXA(D$4628:$D4710)+1,0) -> 80 | E4711: ='دليل الاصناف'!B82 -> 0
C4712: =IFERROR(VLOOKUP(ROWS(C$4629:$C4712),$D$4629:$E$6217,2,FALSE),"") -> 0 | D4712: =IF(ISNUMBER(SEARCH($H$1,E4712)),MAXA(D$4628:$D4711)+1,0) -> 81 | E4712: ='دليل الاصناف'!B83 -> 0
C4713: =IFERROR(VLOOKUP(ROWS(C$4629:$C4713),$D$4629:$E$6217,2,FALSE),"") -> 0 | D4713: =IF(ISNUMBER(SEARCH($H$1,E4713)),MAXA(D$4628:$D4712)+1,0) -> 82 | E4713: ='دليل الاصناف'!B84 -> 0
C4714: =IFERROR(VLOOKUP(ROWS(C$4629:$C4714),$D$4629:$E$6217,2,FALSE),"") -> 0 | D4714: =IF(ISNUMBER(SEARCH($H$1,E4714)),MAXA(D$4628:$D4713)+1,0) -> 83 | E4714: ='دليل الاصناف'!B85 -> 0
C4715: =IFERROR(VLOOKUP(ROWS(C$4629:$C4715),$D$4629:$E$6217,2,FALSE),"") -> 0 | D4715: =IF(ISNUMBER(SEARCH($H$1,E4715)),MAXA(D$4628:$D4714)+1,0) -> 84 | E4715: ='دليل الاصناف'!B86 -> 0
C4716: =IFERROR(VLOOKUP(ROWS(C$4629:$C4716),$D$4629:$E$6217,2,FALSE),"") -> 0 | D4716: =IF(ISNUMBER(SEARCH($H$1,E4716)),MAXA(D$4628:$D4715)+1,0) -> 85 | E4716: ='دليل الاصناف'!B87 -> 0
C4717: =IFERROR(VLOOKUP(ROWS(C$4629:$C4717),$D$4629:$E$6217,2,FALSE),"") -> 0 | D4717: =IF(ISNUMBER(SEARCH($H$1,E4717)),MAXA(D$4628:$D4716)+1,0) -> 86 | E4717: ='دليل الاصناف'!B88 -> 0
C4718: =IFERROR(VLOOKUP(ROWS(C$4629:$C4718),$D$4629:$E$6217,2,FALSE),"") -> 0 | D4718: =IF(ISNUMBER(SEARCH($H$1,E4718)),MAXA(D$4628:$D4717)+1,0) -> 87 | E4718: ='دليل الاصناف'!B89 -> 0
C4719: =IFERROR(VLOOKUP(ROWS(C$4629:$C4719),$D$4629:$E$6217,2,FALSE),"") -> 0 | D4719: =IF(ISNUMBER(SEARCH($H$1,E4719)),MAXA(D$4628:$D4718)+1,0) -> 88 | E4719: ='دليل الاصناف'!B90 -> 0
C4720: =IFERROR(VLOOKUP(ROWS(C$4629:$C4720),$D$4629:$E$6217,2,FALSE),"") -> 0 | D4720: =IF(ISNUMBER(SEARCH($H$1,E4720)),MAXA(D$4628:$D4719)+1,0) -> 89 | E4720: ='دليل الاصناف'!B91 -> 0
C4721: =IFERROR(VLOOKUP(ROWS(C$4629:$C4721),$D$4629:$E$6217,2,FALSE),"") -> 0 | D4721: =IF(ISNUMBER(SEARCH($H$1,E4721)),MAXA(D$4628:$D4720)+1,0) -> 90 | E4721: ='دليل الاصناف'!B92 -> 0
C4722: =IFERROR(VLOOKUP(ROWS(C$4629:$C4722),$D$4629:$E$6217,2,FALSE),"") -> 0 | D4722: =IF(ISNUMBER(SEARCH($H$1,E4722)),MAXA(D$4628:$D4721)+1,0) -> 91 | E4722: ='دليل الاصناف'!B93 -> 0
C4723: =IFERROR(VLOOKUP(ROWS(C$4629:$C4723),$D$4629:$E$6217,2,FALSE),"") -> 0 | D4723: =IF(ISNUMBER(SEARCH($H$1,E4723)),MAXA(D$4628:$D4722)+1,0) -> 92 | E4723: ='دليل الاصناف'!B94 -> 0
C4724: =IFERROR(VLOOKUP(ROWS(C$4629:$C4724),$D$4629:$E$6217,2,FALSE),"") -> 0 | D4724: =IF(ISNUMBER(SEARCH($H$1,E4724)),MAXA(D$4628:$D4723)+1,0) -> 93 | E4724: ='دليل الاصناف'!B95 -> 0
C4725: =IFERROR(VLOOKUP(ROWS(C$4629:$C4725),$D$4629:$E$6217,2,FALSE),"") -> 0 | D4725: =IF(ISNUMBER(SEARCH($H$1,E4725)),MAXA(D$4628:$D4724)+1,0) -> 94 | E4725: ='دليل الاصناف'!B96 -> 0
C4726: =IFERROR(VLOOKUP(ROWS(C$4629:$C4726),$D$4629:$E$6217,2,FALSE),"") -> 0 | D4726: =IF(ISNUMBER(SEARCH($H$1,E4726)),MAXA(D$4628:$D4725)+1,0) -> 95 | E4726: ='دليل الاصناف'!B97 -> 0
C4727: =IFERROR(VLOOKUP(ROWS(C$4629:$C4727),$D$4629:$E$6217,2,FALSE),"") -> 0 | D4727: =IF(ISNUMBER(SEARCH($H$1,E4727)),MAXA(D$4628:$D4726)+1,0) -> 96 | E4727: ='دليل الاصناف'!B98 -> 0
C4728: =IFERROR(VLOOKUP(ROWS(C$4629:$C4728),$D$4629:$E$6217,2,FALSE),"") -> 0 | D4728: =IF(ISNUMBER(SEARCH($H$1,E4728)),MAXA(D$4628:$D4727)+1,0) -> 97 | E4728: ='دليل الاصناف'!B99 -> 0
C4729: =IFERROR(VLOOKUP(ROWS(C$4629:$C4729),$D$4629:$E$6217,2,FALSE),"") -> 0 | D4729: =IF(ISNUMBER(SEARCH($H$1,E4729)),MAXA(D$4628:$D4728)+1,0) -> 98 | E4729: ='دليل الاصناف'!B100 -> 0
C4730: =IFERROR(VLOOKUP(ROWS(C$4629:$C4730),$D$4629:$E$6217,2,FALSE),"") -> 0 | D4730: =IF(ISNUMBER(SEARCH($H$1,E4730)),MAXA(D$4628:$D4729)+1,0) -> 99 | E4730: ='دليل الاصناف'!B101 -> 0
C4731: =IFERROR(VLOOKUP(ROWS(C$4629:$C4731),$D$4629:$E$6217,2,FALSE),"") -> 0 | D4731: =IF(ISNUMBER(SEARCH($H$1,E4731)),MAXA(D$4628:$D4730)+1,0) -> 100 | E4731: ='دليل الاصناف'!B102 -> 0
C4732: =IFERROR(VLOOKUP(ROWS(C$4629:$C4732),$D$4629:$E$6217,2,FALSE),"") -> 0 | D4732: =IF(ISNUMBER(SEARCH($H$1,E4732)),MAXA(D$4628:$D4731)+1,0) -> 101 | E4732: ='دليل الاصناف'!B103 -> 0
C4733: =IFERROR(VLOOKUP(ROWS(C$4629:$C4733),$D$4629:$E$6217,2,FALSE),"") -> 0 | D4733: =IF(ISNUMBER(SEARCH($H$1,E4733)),MAXA(D$4628:$D4732)+1,0) -> 102 | E4733: ='دليل الاصناف'!B104 -> 0
C4734: =IFERROR(VLOOKUP(ROWS(C$4629:$C4734),$D$4629:$E$6217,2,FALSE),"") -> 0 | D4734: =IF(ISNUMBER(SEARCH($H$1,E4734)),MAXA(D$4628:$D4733)+1,0) -> 103 | E4734: ='دليل الاصناف'!B105 -> 0
C4735: =IFERROR(VLOOKUP(ROWS(C$4629:$C4735),$D$4629:$E$6217,2,FALSE),"") -> 0 | D4735: =IF(ISNUMBER(SEARCH($H$1,E4735)),MAXA(D$4628:$D4734)+1,0) -> 104 | E4735: ='دليل الاصناف'!B106 -> 0
C4736: =IFERROR(VLOOKUP(ROWS(C$4629:$C4736),$D$4629:$E$6217,2,FALSE),"") -> 0 | D4736: =IF(ISNUMBER(SEARCH($H$1,E4736)),MAXA(D$4628:$D4735)+1,0) -> 105 | E4736: ='دليل الاصناف'!B107 -> 0
C4737: =IFERROR(VLOOKUP(ROWS(C$4629:$C4737),$D$4629:$E$6217,2,FALSE),"") -> 0 | D4737: =IF(ISNUMBER(SEARCH($H$1,E4737)),MAXA(D$4628:$D4736)+1,0) -> 106 | E4737: ='دليل الاصناف'!B108 -> 0
C4738: =IFERROR(VLOOKUP(ROWS(C$4629:$C4738),$D$4629:$E$6217,2,FALSE),"") -> 0 | D4738: =IF(ISNUMBER(SEARCH($H$1,E4738)),MAXA(D$4628:$D4737)+1,0) -> 107 | E4738: ='دليل الاصناف'!B109 -> 0
C4739: =IFERROR(VLOOKUP(ROWS(C$4629:$C4739),$D$4629:$E$6217,2,FALSE),"") -> 0 | D4739: =IF(ISNUMBER(SEARCH($H$1,E4739)),MAXA(D$4628:$D4738)+1,0) -> 108 | E4739: ='دليل الاصناف'!B110 -> 0
C4740: =IFERROR(VLOOKUP(ROWS(C$4629:$C4740),$D$4629:$E$6217,2,FALSE),"") -> 0 | D4740: =IF(ISNUMBER(SEARCH($H$1,E4740)),MAXA(D$4628:$D4739)+1,0) -> 109 | E4740: ='دليل الاصناف'!B111 -> 0
C4741: =IFERROR(VLOOKUP(ROWS(C$4629:$C4741),$D$4629:$E$6217,2,FALSE),"") -> 0 | D4741: =IF(ISNUMBER(SEARCH($H$1,E4741)),MAXA(D$4628:$D4740)+1,0) -> 110 | E4741: ='دليل الاصناف'!B112 -> 0
C4742: =IFERROR(VLOOKUP(ROWS(C$4629:$C4742),$D$4629:$E$6217,2,FALSE),"") -> 0 | D4742: =IF(ISNUMBER(SEARCH($H$1,E4742)),MAXA(D$4628:$D4741)+1,0) -> 111 | E4742: ='دليل الاصناف'!B113 -> 0
C4743: =IFERROR(VLOOKUP(ROWS(C$4629:$C4743),$D$4629:$E$6217,2,FALSE),"") -> 0 | D4743: =IF(ISNUMBER(SEARCH($H$1,E4743)),MAXA(D$4628:$D4742)+1,0) -> 112 | E4743: ='دليل الاصناف'!B114 -> 0
C4744: =IFERROR(VLOOKUP(ROWS(C$4629:$C4744),$D$4629:$E$6217,2,FALSE),"") -> 0 | D4744: =IF(ISNUMBER(SEARCH($H$1,E4744)),MAXA(D$4628:$D4743)+1,0) -> 113 | E4744: ='دليل الاصناف'!B115 -> 0
C4745: =IFERROR(VLOOKUP(ROWS(C$4629:$C4745),$D$4629:$E$6217,2,FALSE),"") -> 0 | D4745: =IF(ISNUMBER(SEARCH($H$1,E4745)),MAXA(D$4628:$D4744)+1,0) -> 114 | E4745: ='دليل الاصناف'!B116 -> 0
C4746: =IFERROR(VLOOKUP(ROWS(C$4629:$C4746),$D$4629:$E$6217,2,FALSE),"") -> 0 | D4746: =IF(ISNUMBER(SEARCH($H$1,E4746)),MAXA(D$4628:$D4745)+1,0) -> 115 | E4746: ='دليل الاصناف'!B117 -> 0
C4747: =IFERROR(VLOOKUP(ROWS(C$4629:$C4747),$D$4629:$E$6217,2,FALSE),"") -> 0 | D4747: =IF(ISNUMBER(SEARCH($H$1,E4747)),MAXA(D$4628:$D4746)+1,0) -> 116 | E4747: ='دليل الاصناف'!B118 -> 0
C4748: =IFERROR(VLOOKUP(ROWS(C$4629:$C4748),$D$4629:$E$6217,2,FALSE),"") -> 0 | D4748: =IF(ISNUMBER(SEARCH($H$1,E4748)),MAXA(D$4628:$D4747)+1,0) -> 117 | E4748: ='دليل الاصناف'!B119 -> 0
C4749: =IFERROR(VLOOKUP(ROWS(C$4629:$C4749),$D$4629:$E$6217,2,FALSE),"") -> 0 | D4749: =IF(ISNUMBER(SEARCH($H$1,E4749)),MAXA(D$4628:$D4748)+1,0) -> 118 | E4749: ='دليل الاصناف'!B120 -> 0
C4750: =IFERROR(VLOOKUP(ROWS(C$4629:$C4750),$D$4629:$E$6217,2,FALSE),"") -> 0 | D4750: =IF(ISNUMBER(SEARCH($H$1,E4750)),MAXA(D$4628:$D4749)+1,0) -> 119 | E4750: ='دليل الاصناف'!B121 -> 0
C4751: =IFERROR(VLOOKUP(ROWS(C$4629:$C4751),$D$4629:$E$6217,2,FALSE),"") -> 0 | D4751: =IF(ISNUMBER(SEARCH($H$1,E4751)),MAXA(D$4628:$D4750)+1,0) -> 120 | E4751: ='دليل الاصناف'!B122 -> 0
C4752: =IFERROR(VLOOKUP(ROWS(C$4629:$C4752),$D$4629:$E$6217,2,FALSE),"") -> 0 | D4752: =IF(ISNUMBER(SEARCH($H$1,E4752)),MAXA(D$4628:$D4751)+1,0) -> 121 | E4752: ='دليل الاصناف'!B123 -> 0
C4753: =IFERROR(VLOOKUP(ROWS(C$4629:$C4753),$D$4629:$E$6217,2,FALSE),"") -> 0 | D4753: =IF(ISNUMBER(SEARCH($H$1,E4753)),MAXA(D$4628:$D4752)+1,0) -> 122 | E4753: ='دليل الاصناف'!B124 -> 0
C4754: =IFERROR(VLOOKUP(ROWS(C$4629:$C4754),$D$4629:$E$6217,2,FALSE),"") -> 0 | D4754: =IF(ISNUMBER(SEARCH($H$1,E4754)),MAXA(D$4628:$D4753)+1,0) -> 123 | E4754: ='دليل الاصناف'!B125 -> 0
C4755: =IFERROR(VLOOKUP(ROWS(C$4629:$C4755),$D$4629:$E$6217,2,FALSE),"") -> 0 | D4755: =IF(ISNUMBER(SEARCH($H$1,E4755)),MAXA(D$4628:$D4754)+1,0) -> 124 | E4755: ='دليل الاصناف'!B126 -> 0
C4756: =IFERROR(VLOOKUP(ROWS(C$4629:$C4756),$D$4629:$E$6217,2,FALSE),"") -> 0 | D4756: =IF(ISNUMBER(SEARCH($H$1,E4756)),MAXA(D$4628:$D4755)+1,0) -> 125 | E4756: ='دليل الاصناف'!B127 -> 0
C4757: =IFERROR(VLOOKUP(ROWS(C$4629:$C4757),$D$4629:$E$6217,2,FALSE),"") -> 0 | D4757: =IF(ISNUMBER(SEARCH($H$1,E4757)),MAXA(D$4628:$D4756)+1,0) -> 126 | E4757: ='دليل الاصناف'!B128 -> 0
C4758: =IFERROR(VLOOKUP(ROWS(C$4629:$C4758),$D$4629:$E$6217,2,FALSE),"") -> 0 | D4758: =IF(ISNUMBER(SEARCH($H$1,E4758)),MAXA(D$4628:$D4757)+1,0) -> 127 | E4758: ='دليل الاصناف'!B129 -> 0 | F4758: =OFFSET($C$4629,,,COUNTIF($C$4629:$C$6217,"?*")) -> 
C4759: =IFERROR(VLOOKUP(ROWS(C$4629:$C4759),$D$4629:$E$6217,2,FALSE),"") -> 0 | D4759: =IF(ISNUMBER(SEARCH($H$1,E4759)),MAXA(D$4628:$D4758)+1,0) -> 128 | E4759: ='دليل الاصناف'!B130 -> 0
C4760: =IFERROR(VLOOKUP(ROWS(C$4629:$C4760),$D$4629:$E$6217,2,FALSE),"") -> 0 | D4760: =IF(ISNUMBER(SEARCH($H$1,E4760)),MAXA(D$4628:$D4759)+1,0) -> 129 | E4760: ='دليل الاصناف'!B131 -> 0
C4761: =IFERROR(VLOOKUP(ROWS(C$4629:$C4761),$D$4629:$E$6217,2,FALSE),"") -> 0 | D4761: =IF(ISNUMBER(SEARCH($H$1,E4761)),MAXA(D$4628:$D4760)+1,0) -> 130 | E4761: ='دليل الاصناف'!B132 -> 0
C4762: =IFERROR(VLOOKUP(ROWS(C$4629:$C4762),$D$4629:$E$6217,2,FALSE),"") -> 0 | D4762: =IF(ISNUMBER(SEARCH($H$1,E4762)),MAXA(D$4628:$D4761)+1,0) -> 131 | E4762: ='دليل الاصناف'!B133 -> 0
C4763: =IFERROR(VLOOKUP(ROWS(C$4629:$C4763),$D$4629:$E$6217,2,FALSE),"") -> 0 | D4763: =IF(ISNUMBER(SEARCH($H$1,E4763)),MAXA(D$4628:$D4762)+1,0) -> 132 | E4763: ='دليل الاصناف'!B134 -> 0
C4764: =IFERROR(VLOOKUP(ROWS(C$4629:$C4764),$D$4629:$E$6217,2,FALSE),"") -> 0 | D4764: =IF(ISNUMBER(SEARCH($H$1,E4764)),MAXA(D$4628:$D4763)+1,0) -> 133 | E4764: ='دليل الاصناف'!B135 -> 0
C4765: =IFERROR(VLOOKUP(ROWS(C$4629:$C4765),$D$4629:$E$6217,2,FALSE),"") -> 0 | D4765: =IF(ISNUMBER(SEARCH($H$1,E4765)),MAXA(D$4628:$D4764)+1,0) -> 134 | E4765: ='دليل الاصناف'!B136 -> 0
C4766: =IFERROR(VLOOKUP(ROWS(C$4629:$C4766),$D$4629:$E$6217,2,FALSE),"") -> 0 | D4766: =IF(ISNUMBER(SEARCH($H$1,E4766)),MAXA(D$4628:$D4765)+1,0) -> 135 | E4766: ='دليل الاصناف'!B137 -> 0
C4767: =IFERROR(VLOOKUP(ROWS(C$4629:$C4767),$D$4629:$E$6217,2,FALSE),"") -> 0 | D4767: =IF(ISNUMBER(SEARCH($H$1,E4767)),MAXA(D$4628:$D4766)+1,0) -> 136 | E4767: ='دليل الاصناف'!B138 -> 0
C4768: =IFERROR(VLOOKUP(ROWS(C$4629:$C4768),$D$4629:$E$6217,2,FALSE),"") -> 0 | D4768: =IF(ISNUMBER(SEARCH($H$1,E4768)),MAXA(D$4628:$D4767)+1,0) -> 137 | E4768: ='دليل الاصناف'!B139 -> 0
C4769: =IFERROR(VLOOKUP(ROWS(C$4629:$C4769),$D$4629:$E$6217,2,FALSE),"") -> 0 | D4769: =IF(ISNUMBER(SEARCH($H$1,E4769)),MAXA(D$4628:$D4768)+1,0) -> 138 | E4769: ='دليل الاصناف'!B140 -> 0
C4770: =IFERROR(VLOOKUP(ROWS(C$4629:$C4770),$D$4629:$E$6217,2,FALSE),"") -> 0 | D4770: =IF(ISNUMBER(SEARCH($H$1,E4770)),MAXA(D$4628:$D4769)+1,0) -> 139 | E4770: ='دليل الاصناف'!B141 -> 0
C4771: =IFERROR(VLOOKUP(ROWS(C$4629:$C4771),$D$4629:$E$6217,2,FALSE),"") -> 0 | D4771: =IF(ISNUMBER(SEARCH($H$1,E4771)),MAXA(D$4628:$D4770)+1,0) -> 140 | E4771: ='دليل الاصناف'!B142 -> 0
C4772: =IFERROR(VLOOKUP(ROWS(C$4629:$C4772),$D$4629:$E$6217,2,FALSE),"") -> 0 | D4772: =IF(ISNUMBER(SEARCH($H$1,E4772)),MAXA(D$4628:$D4771)+1,0) -> 141 | E4772: ='دليل الاصناف'!B143 -> 0
C4773: =IFERROR(VLOOKUP(ROWS(C$4629:$C4773),$D$4629:$E$6217,2,FALSE),"") -> 0 | D4773: =IF(ISNUMBER(SEARCH($H$1,E4773)),MAXA(D$4628:$D4772)+1,0) -> 142 | E4773: ='دليل الاصناف'!B144 -> 0
C4774: =IFERROR(VLOOKUP(ROWS(C$4629:$C4774),$D$4629:$E$6217,2,FALSE),"") -> 0 | D4774: =IF(ISNUMBER(SEARCH($H$1,E4774)),MAXA(D$4628:$D4773)+1,0) -> 143 | E4774: ='دليل الاصناف'!B145 -> 0
C4775: =IFERROR(VLOOKUP(ROWS(C$4629:$C4775),$D$4629:$E$6217,2,FALSE),"") -> 0 | D4775: =IF(ISNUMBER(SEARCH($H$1,E4775)),MAXA(D$4628:$D4774)+1,0) -> 144 | E4775: ='دليل الاصناف'!B146 -> 0
C4776: =IFERROR(VLOOKUP(ROWS(C$4629:$C4776),$D$4629:$E$6217,2,FALSE),"") -> 0 | D4776: =IF(ISNUMBER(SEARCH($H$1,E4776)),MAXA(D$4628:$D4775)+1,0) -> 145 | E4776: ='دليل الاصناف'!B147 -> 0
C4777: =IFERROR(VLOOKUP(ROWS(C$4629:$C4777),$D$4629:$E$6217,2,FALSE),"") -> 0 | D4777: =IF(ISNUMBER(SEARCH($H$1,E4777)),MAXA(D$4628:$D4776)+1,0) -> 146 | E4777: ='دليل الاصناف'!B148 -> 0
C4778: =IFERROR(VLOOKUP(ROWS(C$4629:$C4778),$D$4629:$E$6217,2,FALSE),"") -> 0 | D4778: =IF(ISNUMBER(SEARCH($H$1,E4778)),MAXA(D$4628:$D4777)+1,0) -> 147 | E4778: ='دليل الاصناف'!B149 -> 0
C4779: =IFERROR(VLOOKUP(ROWS(C$4629:$C4779),$D$4629:$E$6217,2,FALSE),"") -> 0 | D4779: =IF(ISNUMBER(SEARCH($H$1,E4779)),MAXA(D$4628:$D4778)+1,0) -> 148 | E4779: ='دليل الاصناف'!B150 -> 0
C4780: =IFERROR(VLOOKUP(ROWS(C$4629:$C4780),$D$4629:$E$6217,2,FALSE),"") -> 0 | D4780: =IF(ISNUMBER(SEARCH($H$1,E4780)),MAXA(D$4628:$D4779)+1,0) -> 149 | E4780: ='دليل الاصناف'!B151 -> 0
C4781: =IFERROR(VLOOKUP(ROWS(C$4629:$C4781),$D$4629:$E$6217,2,FALSE),"") -> 0 | D4781: =IF(ISNUMBER(SEARCH($H$1,E4781)),MAXA(D$4628:$D4780)+1,0) -> 150 | E4781: ='دليل الاصناف'!B152 -> 0
C4782: =IFERROR(VLOOKUP(ROWS(C$4629:$C4782),$D$4629:$E$6217,2,FALSE),"") -> 0 | D4782: =IF(ISNUMBER(SEARCH($H$1,E4782)),MAXA(D$4628:$D4781)+1,0) -> 151 | E4782: ='دليل الاصناف'!B153 -> 0
C4783: =IFERROR(VLOOKUP(ROWS(C$4629:$C4783),$D$4629:$E$6217,2,FALSE),"") -> 0 | D4783: =IF(ISNUMBER(SEARCH($H$1,E4783)),MAXA(D$4628:$D4782)+1,0) -> 152 | E4783: ='دليل الاصناف'!B154 -> 0
C4784: =IFERROR(VLOOKUP(ROWS(C$4629:$C4784),$D$4629:$E$6217,2,FALSE),"") -> 0 | D4784: =IF(ISNUMBER(SEARCH($H$1,E4784)),MAXA(D$4628:$D4783)+1,0) -> 153 | E4784: ='دليل الاصناف'!B155 -> 0
C4785: =IFERROR(VLOOKUP(ROWS(C$4629:$C4785),$D$4629:$E$6217,2,FALSE),"") -> 0 | D4785: =IF(ISNUMBER(SEARCH($H$1,E4785)),MAXA(D$4628:$D4784)+1,0) -> 154 | E4785: ='دليل الاصناف'!B156 -> 0
C4786: =IFERROR(VLOOKUP(ROWS(C$4629:$C4786),$D$4629:$E$6217,2,FALSE),"") -> 0 | D4786: =IF(ISNUMBER(SEARCH($H$1,E4786)),MAXA(D$4628:$D4785)+1,0) -> 155 | E4786: ='دليل الاصناف'!B157 -> 0
C4787: =IFERROR(VLOOKUP(ROWS(C$4629:$C4787),$D$4629:$E$6217,2,FALSE),"") -> 0 | D4787: =IF(ISNUMBER(SEARCH($H$1,E4787)),MAXA(D$4628:$D4786)+1,0) -> 156 | E4787: ='دليل الاصناف'!B158 -> 0
C4788: =IFERROR(VLOOKUP(ROWS(C$4629:$C4788),$D$4629:$E$6217,2,FALSE),"") -> 0 | D4788: =IF(ISNUMBER(SEARCH($H$1,E4788)),MAXA(D$4628:$D4787)+1,0) -> 157 | E4788: ='دليل الاصناف'!B159 -> 0
C4789: =IFERROR(VLOOKUP(ROWS(C$4629:$C4789),$D$4629:$E$6217,2,FALSE),"") -> 0 | D4789: =IF(ISNUMBER(SEARCH($H$1,E4789)),MAXA(D$4628:$D4788)+1,0) -> 158 | E4789: ='دليل الاصناف'!B160 -> 0
C4790: =IFERROR(VLOOKUP(ROWS(C$4629:$C4790),$D$4629:$E$6217,2,FALSE),"") -> 0 | D4790: =IF(ISNUMBER(SEARCH($H$1,E4790)),MAXA(D$4628:$D4789)+1,0) -> 159 | E4790: ='دليل الاصناف'!B161 -> 0
C4791: =IFERROR(VLOOKUP(ROWS(C$4629:$C4791),$D$4629:$E$6217,2,FALSE),"") -> 0 | D4791: =IF(ISNUMBER(SEARCH($H$1,E4791)),MAXA(D$4628:$D4790)+1,0) -> 160 | E4791: ='دليل الاصناف'!B162 -> 0
C4792: =IFERROR(VLOOKUP(ROWS(C$4629:$C4792),$D$4629:$E$6217,2,FALSE),"") -> 0 | D4792: =IF(ISNUMBER(SEARCH($H$1,E4792)),MAXA(D$4628:$D4791)+1,0) -> 161 | E4792: ='دليل الاصناف'!B163 -> 0
C4793: =IFERROR(VLOOKUP(ROWS(C$4629:$C4793),$D$4629:$E$6217,2,FALSE),"") -> 0 | D4793: =IF(ISNUMBER(SEARCH($H$1,E4793)),MAXA(D$4628:$D4792)+1,0) -> 162 | E4793: ='دليل الاصناف'!B164 -> 0
C4794: =IFERROR(VLOOKUP(ROWS(C$4629:$C4794),$D$4629:$E$6217,2,FALSE),"") -> 0 | D4794: =IF(ISNUMBER(SEARCH($H$1,E4794)),MAXA(D$4628:$D4793)+1,0) -> 163 | E4794: ='دليل الاصناف'!B165 -> 0
C4795: =IFERROR(VLOOKUP(ROWS(C$4629:$C4795),$D$4629:$E$6217,2,FALSE),"") -> 0 | D4795: =IF(ISNUMBER(SEARCH($H$1,E4795)),MAXA(D$4628:$D4794)+1,0) -> 164 | E4795: ='دليل الاصناف'!B166 -> 0
C4796: =IFERROR(VLOOKUP(ROWS(C$4629:$C4796),$D$4629:$E$6217,2,FALSE),"") -> 0 | D4796: =IF(ISNUMBER(SEARCH($H$1,E4796)),MAXA(D$4628:$D4795)+1,0) -> 165 | E4796: ='دليل الاصناف'!B167 -> 0
C4797: =IFERROR(VLOOKUP(ROWS(C$4629:$C4797),$D$4629:$E$6217,2,FALSE),"") -> 0 | D4797: =IF(ISNUMBER(SEARCH($H$1,E4797)),MAXA(D$4628:$D4796)+1,0) -> 166 | E4797: ='دليل الاصناف'!B168 -> 0
C4798: =IFERROR(VLOOKUP(ROWS(C$4629:$C4798),$D$4629:$E$6217,2,FALSE),"") -> 0 | D4798: =IF(ISNUMBER(SEARCH($H$1,E4798)),MAXA(D$4628:$D4797)+1,0) -> 167 | E4798: ='دليل الاصناف'!B169 -> 0
C4799: =IFERROR(VLOOKUP(ROWS(C$4629:$C4799),$D$4629:$E$6217,2,FALSE),"") -> 0 | D4799: =IF(ISNUMBER(SEARCH($H$1,E4799)),MAXA(D$4628:$D4798)+1,0) -> 168 | E4799: ='دليل الاصناف'!B170 -> 0
... 1418 more rows

Sheet الجرد
A3: كود | B3: الصنف | C3: الرصيد الأفتتاحي | E3: وارد | G3: منصرف | I3: الرصيد الحالي | J3: الربح
C4: كمية | D4: سعر الوحدة | E4: كمية | F4: قيمة | G4: كمية | H4: قيمة
A5: =IFERROR(IF(B5="","",SUMIF('دليل الاصناف'!$B$2:$B$17,الجرد!B5,'دليل الاصناف'!$A$2:$A$17)),"") -> 22222 | B5: ='دليل الاصناف'!B2 -> كوتشي اكتيف | C5: =IFERROR(IF(B5="","",SUMIF('دليل الاصناف'!$B$2:$B$17,الجرد!B5,'دليل الاصناف'!$C$2:$C$16)),"") -> 30 | D5: =IFERROR(IF(B5="","",SUMIF('دليل الاصناف'!$B$2:$B$17,الجرد!B5,'دليل الاصناف'!$D$2:$D$16)),"") -> 120 | E5: =IFERROR(SUMIF(وارد!$B$2:$B$20,$B5,وارد!$D$2:$D$20),"") -> 0 | F5: =IFERROR(SUMIF(وارد!$B$2:$B$20, $B5,وارد!$F$2:$F$20),"") -> 0 | G5: =IFERROR(SUMIF(منصرف!$B$2:$B$20,$B5,منصرف!$D$2:$D$20),"") -> 0 | H5: =IFERROR(SUMIF(منصرف!$B$2:$B$20,$B5,منصرف!$F$2:$F$20),"") -> 0 | I5: =IFERROR(IF(B5="","",C5+E5-G5),"") -> 30 | J5: =IFERROR(IFERROR(SUM(H5-F5),""),"") -> 0
A6: =IFERROR(IF(B6="","",SUMIF('دليل الاصناف'!$B$2:$B$17,الجرد!B6,'دليل الاصناف'!$A$2:$A$17)),"") -> 11111 | B6: ='دليل الاصناف'!B3 -> تيشرت بولو نصف كم | C6: =IFERROR(IF(B6="","",SUMIF('دليل الاصناف'!$B$2:$B$17,الجرد!B6,'دليل الاصناف'!$C$2:$C$16)),"") -> 60 | D6: =IFERROR(IF(B6="","",SUMIF('دليل الاصناف'!$B$2:$B$17,الجرد!B6,'دليل الاصناف'!$D$2:$D$16)),"") -> 200 | E6: =IFERROR(SUMIF(وارد!$B$2:$B$20,$B6,وارد!$D$2:$D$20),"") -> 0 | F6: =IFERROR(SUMIF(وارد!$B$2:$B$20, $B6,وارد!$F$2:$F$20),"") -> 0 | G6: =IFERROR(SUMIF(منصرف!$B$2:$B$20,$B6,منصرف!$D$2:$D$20),"") -> 0 | H6: =IFERROR(SUMIF(منصرف!$B$2:$B$20,$B6,منصرف!$F$2:$F$20),"") -> 0 | I6: =IFERROR(IF(B6="","",C6+E6-G6),"") -> 60 | J6: =IFERROR(IFERROR(SUM(H6-F6),""),"") -> 0
A7: =IFERROR(IF(B7="","",SUMIF('دليل الاصناف'!$B$2:$B$17,الجرد!B7,'دليل الاصناف'!$A$2:$A$17)),"") -> 33333 | B7: ='دليل الاصناف'!B4 -> كوتشي بوما | C7: =IFERROR(IF(B7="","",SUMIF('دليل الاصناف'!$B$2:$B$17,الجرد!B7,'دليل الاصناف'!$C$2:$C$16)),"") -> 25 | D7: =IFERROR(IF(B7="","",SUMIF('دليل الاصناف'!$B$2:$B$17,الجرد!B7,'دليل الاصناف'!$D$2:$D$16)),"") -> 110 | E7: =IFERROR(SUMIF(وارد!$B$2:$B$20,$B7,وارد!$D$2:$D$20),"") -> 0 | F7: =IFERROR(SUMIF(وارد!$B$2:$B$20, $B7,وارد!$F$2:$F$20),"") -> 0 | G7: =IFERROR(SUMIF(منصرف!$B$2:$B$20,$B7,منصرف!$D$2:$D$20),"") -> 0 | H7: =IFERROR(SUMIF(منصرف!$B$2:$B$20,$B7,منصرف!$F$2:$F$20),"") -> 0 | I7: 25 | J7: 0
A8: =IFERROR(IF(B8="","",SUMIF('دليل الاصناف'!$B$2:$B$17,الجرد!B8,'دليل الاصناف'!$A$2:$A$17)),"") -> 44444 | B8: ='دليل الاصناف'!B5 -> شورت ليكرا | C8: =IFERROR(IF(B8="","",SUMIF('دليل الاصناف'!$B$2:$B$17,الجرد!B8,'دليل الاصناف'!$C$2:$C$16)),"") -> 15 | D8: =IFERROR(IF(B8="","",SUMIF('دليل الاصناف'!$B$2:$B$17,الجرد!B8,'دليل الاصناف'!$D$2:$D$16)),"") -> 55 | E8: =IFERROR(SUMIF(وارد!$B$2:$B$20,$B8,وارد!$D$2:$D$20),"") -> 0 | F8: =IFERROR(SUMIF(وارد!$B$2:$B$20, $B8,وارد!$F$2:$F$20),"") -> 0 | G8: =IFERROR(SUMIF(منصرف!$B$2:$B$20,$B8,منصرف!$D$2:$D$20),"") -> 0 | H8: =IFERROR(SUMIF(منصرف!$B$2:$B$20,$B8,منصرف!$F$2:$F$20),"") -> 0 | I8: 15 | J8: 0
A9: =IFERROR(IF(B9="","",SUMIF('دليل الاصناف'!$B$2:$B$17,الجرد!B9,'دليل الاصناف'!$A$2:$A$17)),"") -> 55555 | B9: ='دليل الاصناف'!B6 -> شراب اديداس | C9: =IFERROR(IF(B9="","",SUMIF('دليل الاصناف'!$B$2:$B$17,الجرد!B9,'دليل الاصناف'!$C$2:$C$16)),"") -> 10 | D9: =IFERROR(IF(B9="","",SUMIF('دليل الاصناف'!$B$2:$B$17,الجرد!B9,'دليل الاصناف'!$D$2:$D$16)),"") -> 25 | E9: =IFERROR(SUMIF(وارد!$B$2:$B$20,$B9,وارد!$D$2:$D$20),"") -> 0 | F9: =IFERROR(SUMIF(وارد!$B$2:$B$20, $B9,وارد!$F$2:$F$20),"") -> 0 | G9: =IFERROR(SUMIF(منصرف!$B$2:$B$20,$B9,منصرف!$D$2:$D$20),"") -> 0 | H9: =IFERROR(SUMIF(منصرف!$B$2:$B$20,$B9,منصرف!$F$2:$F$20),"") -> 0 | I9: 10 | J9: 0
A10: =IFERROR(IF(B10="","",SUMIF('دليل الاصناف'!$B$2:$B$17,الجرد!B10,'دليل الاصناف'!$A$2:$A$17)),"") -> 66666 | B10: ='دليل الاصناف'!B7 -> تيشرت بولو XXL | C10: =IFERROR(IF(B10="","",SUMIF('دليل الاصناف'!$B$2:$B$17,الجرد!B10,'دليل الاصناف'!$C$2:$C$16)),"") -> 20 | D10: =IFERROR(IF(B10="","",SUMIF('دليل الاصناف'!$B$2:$B$17,الجرد!B10,'دليل الاصناف'!$D$2:$D$16)),"") -> 120 | E10: =IFERROR(SUMIF(وارد!$B$2:$B$20,$B10,وارد!$D$2:$D$20),"") -> 0 | F10: =IFERROR(SUMIF(وارد!$B$2:$B$20, $B10,وارد!$F$2:$F$20),"") -> 0 | G10: =IFERROR(SUMIF(منصرف!$B$2:$B$20,$B10,منصرف!$D$2:$D$20),"") -> 0 | H10: =IFERROR(SUMIF(منصرف!$B$2:$B$20,$B10,منصرف!$F$2:$F$20),"") -> 0 | I10: 20 | J10: 0
A11: =IFERROR(IF(B11="","",SUMIF('دليل الاصناف'!$B$2:$B$17,الجرد!B11,'دليل الاصناف'!$A$2:$A$17)),"") -> 77777 | B11: ='دليل الاصناف'!B8 -> كوتشي اديداس | C11: =IFERROR(IF(B11="","",SUMIF('دليل الاصناف'!$B$2:$B$17,الجرد!B11,'دليل الاصناف'!$C$2:$C$16)),"") -> 40 | D11: =IFERROR(IF(B11="","",SUMIF('دليل الاصناف'!$B$2:$B$17,الجرد!B11,'دليل الاصناف'!$D$2:$D$16)),"") -> 120 | E11: =IFERROR(SUMIF(وارد!$B$2:$B$20,$B11,وارد!$D$2:$D$20),"") -> 0 | F11: =IFERROR(SUMIF(وارد!$B$2:$B$20, $B11,وارد!$F$2:$F$20),"") -> 0 | G11: =IFERROR(SUMIF(منصرف!$B$2:$B$20,$B11,منصرف!$D$2:$D$20),"") -> 0 | H11: =IFERROR(SUMIF(منصرف!$B$2:$B$20,$B11,منصرف!$F$2:$F$20),"") -> 0 | I11: 40 | J11: 0
A12: =IFERROR(IF(B12="","",SUMIF('دليل الاصناف'!$B$2:$B$17,الجرد!B12,'دليل الاصناف'!$A$2:$A$17)),"") -> 0 | B12: ='دليل الاصناف'!B9 -> 0 | C12: =IFERROR(IF(B12="","",SUMIF('دليل الاصناف'!$B$2:$B$17,الجرد!B12,'دليل الاصناف'!$C$2:$C$16)),"") -> 0 | D12: =IFERROR(IF(B12="","",SUMIF('دليل الاصناف'!$B$2:$B$17,الجرد!B12,'دليل الاصناف'!$D$2:$D$16)),"") -> 0 | E12: =IFERROR(SUMIF(وارد!$B$2:$B$20,$B12,وارد!$D$2:$D$20),"") -> 0 | F12: =IFERROR(SUMIF(وارد!$B$2:$B$20, $B12,وارد!$F$2:$F$20),"") -> 0 | G12: =IFERROR(SUMIF(منصرف!$B$2:$B$20,$B12,منصرف!$D$2:$D$20),"") -> 0 | H12: =IFERROR(SUMIF(منصرف!$B$2:$B$20,$B12,منصرف!$F$2:$F$20),"") -> 0 | I12: 0 | J12: 0
A13: =IFERROR(IF(B13="","",SUMIF('دليل الاصناف'!$B$2:$B$17,الجرد!B13,'دليل الاصناف'!$A$2:$A$17)),"") -> 0 | B13: ='دليل الاصناف'!B10 -> 0 | C13: =IFERROR(IF(B13="","",SUMIF('دليل الاصناف'!$B$2:$B$17,الجرد!B13,'دليل الاصناف'!$C$2:$C$16)),"") -> 0 | D13: =IFERROR(IF(B13="","",SUMIF('دليل الاصناف'!$B$2:$B$17,الجرد!B13,'دليل الاصناف'!$D$2:$D$16)),"") -> 0 | E13: =IFERROR(SUMIF(وارد!$B$2:$B$20,$B13,وارد!$D$2:$D$20),"") -> 0 | F13: =IFERROR(SUMIF(وارد!$B$2:$B$20, $B13,وارد!$F$2:$F$20),"") -> 0 | G13: =IFERROR(SUMIF(منصرف!$B$2:$B$20,$B13,منصرف!$D$2:$D$20),"") -> 0 | H13: =IFERROR(SUMIF(منصرف!$B$2:$B$20,$B13,منصرف!$F$2:$F$20),"") -> 0 | I13: 0 | J13: 0
A14: =IFERROR(IF(B14="","",SUMIF('دليل الاصناف'!$B$2:$B$17,الجرد!B14,'دليل الاصناف'!$A$2:$A$17)),"") -> 0 | B14: ='دليل الاصناف'!B11 -> 0 | C14: =IFERROR(IF(B14="","",SUMIF('دليل الاصناف'!$B$2:$B$17,الجرد!B14,'دليل الاصناف'!$C$2:$C$16)),"") -> 0 | D14: =IFERROR(IF(B14="","",SUMIF('دليل الاصناف'!$B$2:$B$17,الجرد!B14,'دليل الاصناف'!$D$2:$D$16)),"") -> 0 | E14: =IFERROR(SUMIF(وارد!$B$2:$B$20,$B14,وارد!$D$2:$D$20),"") -> 0 | F14: =IFERROR(SUMIF(وارد!$B$2:$B$20, $B14,وارد!$F$2:$F$20),"") -> 0 | G14: =IFERROR(SUMIF(منصرف!$B$2:$B$20,$B14,منصرف!$D$2:$D$20),"") -> 0 | H14: =IFERROR(SUMIF(منصرف!$B$2:$B$20,$B14,منصرف!$F$2:$F$20),"") -> 0 | I14: 0 | J14: 0
A15: =IFERROR(IF(B15="","",SUMIF('دليل الاصناف'!$B$2:$B$17,الجرد!B15,'دليل الاصناف'!$A$2:$A$17)),"") -> 0 | B15: ='دليل الاصناف'!B12 -> 0 | C15: =IFERROR(IF(B15="","",SUMIF('دليل الاصناف'!$B$2:$B$17,الجرد!B15,'دليل الاصناف'!$C$2:$C$16)),"") -> 0 | D15: =IFERROR(IF(B15="","",SUMIF('دليل الاصناف'!$B$2:$B$17,الجرد!B15,'دليل الاصناف'!$D$2:$D$16)),"") -> 0 | E15: =IFERROR(SUMIF(وارد!$B$2:$B$20,$B15,وارد!$D$2:$D$20),"") -> 0 | F15: =IFERROR(SUMIF(وارد!$B$2:$B$20, $B15,وارد!$F$2:$F$20),"") -> 0 | G15: =IFERROR(SUMIF(منصرف!$B$2:$B$20,$B15,منصرف!$D$2:$D$20),"") -> 0 | H15: =IFERROR(SUMIF(منصرف!$B$2:$B$20,$B15,منصرف!$F$2:$F$20),"") -> 0 | I15: 0 | J15: 0
A16: =IFERROR(IF(B16="","",SUMIF('دليل الاصناف'!$B$2:$B$17,الجرد!B16,'دليل الاصناف'!$A$2:$A$17)),"") -> 0 | B16: ='دليل الاصناف'!B13 -> 0 | C16: =IFERROR(IF(B16="","",SUMIF('دليل الاصناف'!$B$2:$B$17,الجرد!B16,'دليل الاصناف'!$C$2:$C$16)),"") -> 0 | D16: =IFERROR(IF(B16="","",SUMIF('دليل الاصناف'!$B$2:$B$17,الجرد!B16,'دليل الاصناف'!$D$2:$D$16)),"") -> 0 | E16: =IFERROR(SUMIF(وارد!$B$2:$B$20,$B16,وارد!$D$2:$D$20),"") -> 0 | F16: =IFERROR(SUMIF(وارد!$B$2:$B$20, $B16,وارد!$F$2:$F$20),"") -> 0 | G16: =IFERROR(SUMIF(منصرف!$B$2:$B$20,$B16,منصرف!$D$2:$D$20),"") -> 0 | H16: =IFERROR(SUMIF(منصرف!$B$2:$B$20,$B16,منصرف!$F$2:$F$20),"") -> 0 | I16: 0 | J16: 0
A17: =IFERROR(IF(B17="","",SUMIF('دليل الاصناف'!$B$2:$B$17,الجرد!B17,'دليل الاصناف'!$A$2:$A$17)),"") -> 0 | B17: ='دليل الاصناف'!B14 -> 0 | C17: =IFERROR(IF(B17="","",SUMIF('دليل الاصناف'!$B$2:$B$17,الجرد!B17,'دليل الاصناف'!$C$2:$C$16)),"") -> 0 | D17: =IFERROR(IF(B17="","",SUMIF('دليل الاصناف'!$B$2:$B$17,الجرد!B17,'دليل الاصناف'!$D$2:$D$16)),"") -> 0 | E17: =IFERROR(SUMIF(وارد!$B$2:$B$20,$B17,وارد!$D$2:$D$20),"") -> 0 | F17: =IFERROR(SUMIF(وارد!$B$2:$B$20, $B17,وارد!$F$2:$F$20),"") -> 0 | G17: =IFERROR(SUMIF(منصرف!$B$2:$B$20,$B17,منصرف!$D$2:$D$20),"") -> 0 | H17: =IFERROR(SUMIF(منصرف!$B$2:$B$20,$B17,منصرف!$F$2:$F$20),"") -> 0 | I17: 0 | J17: 0
A18: =IFERROR(IF(B18="","",SUMIF('دليل الاصناف'!$B$2:$B$17,الجرد!B18,'دليل الاصناف'!$A$2:$A$17)),"") -> 0 | B18: ='دليل الاصناف'!B15 -> 0 | C18: =IFERROR(IF(B18="","",SUMIF('دليل الاصناف'!$B$2:$B$17,الجرد!B18,'دليل الاصناف'!$C$2:$C$16)),"") -> 0 | D18: =IFERROR(IF(B18="","",SUMIF('دليل الاصناف'!$B$2:$B$17,الجرد!B18,'دليل الاصناف'!$D$2:$D$16)),"") -> 0 | E18: =IFERROR(SUMIF(وارد!$B$2:$B$20,$B18,وارد!$D$2:$D$20),"") -> 0 | F18: =IFERROR(SUMIF(وارد!$B$2:$B$20, $B18,وارد!$F$2:$F$20),"") -> 0 | G18: =IFERROR(SUMIF(منصرف!$B$2:$B$20,$B18,منصرف!$D$2:$D$20),"") -> 0 | H18: =IFERROR(SUMIF(منصرف!$B$2:$B$20,$B18,منصرف!$F$2:$F$20),"") -> 0 | I18: 0 | J18: 0
A19: =IFERROR(IF(B19="","",SUMIF('دليل الاصناف'!$B$2:$B$17,الجرد!B19,'دليل الاصناف'!$A$2:$A$17)),"") -> 0 | B19: ='دليل الاصناف'!B16 -> 0 | C19: =IFERROR(IF(B19="","",SUMIF('دليل الاصناف'!$B$2:$B$17,الجرد!B19,'دليل الاصناف'!$C$2:$C$16)),"") -> 0 | D19: =IFERROR(IF(B19="","",SUMIF('دليل الاصناف'!$B$2:$B$17,الجرد!B19,'دليل الاصناف'!$D$2:$D$16)),"") -> 0 | E19: =IFERROR(SUMIF(وارد!$B$2:$B$20,$B19,وارد!$D$2:$D$20),"") -> 0 | F19: =IFERROR(SUMIF(وارد!$B$2:$B$20, $B19,وارد!$F$2:$F$20),"") -> 0 | G19: =IFERROR(SUMIF(منصرف!$B$2:$B$20,$B19,منصرف!$D$2:$D$20),"") -> 0 | H19: =IFERROR(SUMIF(منصرف!$B$2:$B$20,$B19,منصرف!$F$2:$F$20),"") -> 0 | I19: 0 | J19: 0
A20: =IFERROR(IF(B20="","",SUMIF('دليل الاصناف'!$B$2:$B$17,الجرد!B20,'دليل الاصناف'!$A$2:$A$17)),"") -> 0 | B20: ='دليل الاصناف'!B17 -> 0 | C20: =IFERROR(IF(B20="","",SUMIF('دليل الاصناف'!$B$2:$B$17,الجرد!B20,'دليل الاصناف'!$C$2:$C$16)),"") -> 0 | D20: =IFERROR(IF(B20="","",SUMIF('دليل الاصناف'!$B$2:$B$17,الجرد!B20,'دليل الاصناف'!$D$2:$D$16)),"") -> 0 | E20: =IFERROR(SUMIF(وارد!$B$2:$B$20,$B20,وارد!$D$2:$D$20),"") -> 0 | F20: =IFERROR(SUMIF(وارد!$B$2:$B$20, $B20,وارد!$F$2:$F$20),"") -> 0 | G20: =IFERROR(SUMIF(منصرف!$B$2:$B$20,$B20,منصرف!$D$2:$D$20),"") -> 0 | H20: =IFERROR(SUMIF(منصرف!$B$2:$B$20,$B20,منصرف!$F$2:$F$20),"") -> 0 | I20: 0 | J20: 0
A21: =IFERROR(IF(B21="","",SUMIF('دليل الاصناف'!$B$2:$B$17,الجرد!B21,'دليل الاصناف'!$A$2:$A$17)),"") -> 0 | B21: ='دليل الاصناف'!B18 -> 0 | C21: =IFERROR(IF(B21="","",SUMIF('دليل الاصناف'!$B$2:$B$17,الجرد!B21,'دليل الاصناف'!$C$2:$C$16)),"") -> 0 | D21: =IFERROR(IF(B21="","",SUMIF('دليل الاصناف'!$B$2:$B$17,الجرد!B21,'دليل الاصناف'!$D$2:$D$16)),"") -> 0 | E21: =IFERROR(SUMIF(وارد!$B$2:$B$20,$B21,وارد!$D$2:$D$20),"") -> 0 | F21: =IFERROR(SUMIF(وارد!$B$2:$B$20, $B21,وارد!$F$2:$F$20),"") -> 0 | G21: =IFERROR(SUMIF(منصرف!$B$2:$B$20,$B21,منصرف!$D$2:$D$20),"") -> 0 | H21: =IFERROR(SUMIF(منصرف!$B$2:$B$20,$B21,منصرف!$F$2:$F$20),"") -> 0 | I21: 0 | J21: 0
A22: =IFERROR(IF(B22="","",SUMIF('دليل الاصناف'!$B$2:$B$17,الجرد!B22,'دليل الاصناف'!$A$2:$A$17)),"") -> 0 | B22: ='دليل الاصناف'!B19 -> 0 | C22: =IFERROR(IF(B22="","",SUMIF('دليل الاصناف'!$B$2:$B$17,الجرد!B22,'دليل الاصناف'!$C$2:$C$16)),"") -> 0 | D22: =IFERROR(IF(B22="","",SUMIF('دليل الاصناف'!$B$2:$B$17,الجرد!B22,'دليل الاصناف'!$D$2:$D$16)),"") -> 0 | E22: =IFERROR(SUMIF(وارد!$B$2:$B$20,$B22,وارد!$D$2:$D$20),"") -> 0 | F22: =IFERROR(SUMIF(وارد!$B$2:$B$20, $B22,وارد!$F$2:$F$20),"") -> 0 | G22: =IFERROR(SUMIF(منصرف!$B$2:$B$20,$B22,منصرف!$D$2:$D$20),"") -> 0 | H22: =IFERROR(SUMIF(منصرف!$B$2:$B$20,$B22,منصرف!$F$2:$F$20),"") -> 0 | I22: 0 | J22: 0
A23: =IFERROR(IF(B23="","",SUMIF('دليل الاصناف'!$B$2:$B$17,الجرد!B23,'دليل الاصناف'!$A$2:$A$17)),"") -> 0 | B23: ='دليل الاصناف'!B20 -> 0 | C23: =IFERROR(IF(B23="","",SUMIF('دليل الاصناف'!$B$2:$B$17,الجرد!B23,'دليل الاصناف'!$C$2:$C$16)),"") -> 0 | D23: =IFERROR(IF(B23="","",SUMIF('دليل الاصناف'!$B$2:$B$17,الجرد!B23,'دليل الاصناف'!$D$2:$D$16)),"") -> 0 | E23: =IFERROR(SUMIF(وارد!$B$2:$B$20,$B23,وارد!$D$2:$D$20),"") -> 0 | F23: =IFERROR(SUMIF(وارد!$B$2:$B$20, $B23,وارد!$F$2:$F$20),"") -> 0 | G23: =IFERROR(SUMIF(منصرف!$B$2:$B$20,$B23,منصرف!$D$2:$D$20),"") -> 0 | H23: =IFERROR(SUMIF(منصرف!$B$2:$B$20,$B23,منصرف!$F$2:$F$20),"") -> 0 | I23: 0 | J23: 0
A24: =IFERROR(IF(B24="","",SUMIF('دليل الاصناف'!$B$2:$B$17,الجرد!B24,'دليل الاصناف'!$A$2:$A$17)),"") -> 0 | B24: ='دليل الاصناف'!B21 -> 0 | C24: =IFERROR(IF(B24="","",SUMIF('دليل الاصناف'!$B$2:$B$17,الجرد!B24,'دليل الاصناف'!$C$2:$C$16)),"") -> 0 | D24: =IFERROR(IF(B24="","",SUMIF('دليل الاصناف'!$B$2:$B$17,الجرد!B24,'دليل الاصناف'!$D$2:$D$16)),"") -> 0 | E24: =IFERROR(SUMIF(وارد!$B$2:$B$20,$B24,وارد!$D$2:$D$20),"") -> 0 | F24: =IFERROR(SUMIF(وارد!$B$2:$B$20, $B24,وارد!$F$2:$F$20),"") -> 0 | G24: =IFERROR(SUMIF(منصرف!$B$2:$B$20,$B24,منصرف!$D$2:$D$20),"") -> 0 | H24: =IFERROR(SUMIF(منصرف!$B$2:$B$20,$B24,منصرف!$F$2:$F$20),"") -> 0 | I24: 0 | J24: 0
A25: =IFERROR(IF(B25="","",SUMIF('دليل الاصناف'!$B$2:$B$17,الجرد!B25,'دليل الاصناف'!$A$2:$A$17)),"") -> 0 | B25: ='دليل الاصناف'!B22 -> 0 | C25: =IFERROR(IF(B25="","",SUMIF('دليل الاصناف'!$B$2:$B$17,الجرد!B25,'دليل الاصناف'!$C$2:$C$16)),"") -> 0 | D25: =IFERROR(IF(B25="","",SUMIF('دليل الاصناف'!$B$2:$B$17,الجرد!B25,'دليل الاصناف'!$D$2:$D$16)),"") -> 0 | E25: =IFERROR(SUMIF(وارد!$B$2:$B$20,$B25,وارد!$D$2:$D$20),"") -> 0 | F25: =IFERROR(SUMIF(وارد!$B$2:$B$20, $B25,وارد!$F$2:$F$20),"") -> 0 | G25: =IFERROR(SUMIF(منصرف!$B$2:$B$20,$B25,منصرف!$D$2:$D$20),"") -> 0 | H25: =IFERROR(SUMIF(منصرف!$B$2:$B$20,$B25,منصرف!$F$2:$F$20),"") -> 0 | I25: 0 | J25: 0
A26: =IFERROR(IF(B26="","",SUMIF('دليل الاصناف'!$B$2:$B$17,الجرد!B26,'دليل الاصناف'!$A$2:$A$17)),"") -> 0 | B26: ='دليل الاصناف'!B23 -> 0 | C26: =IFERROR(IF(B26="","",SUMIF('دليل الاصناف'!$B$2:$B$17,الجرد!B26,'دليل الاصناف'!$C$2:$C$16)),"") -> 0 | D26: =IFERROR(IF(B26="","",SUMIF('دليل الاصناف'!$B$2:$B$17,الجرد!B26,'دليل الاصناف'!$D$2:$D$16)),"") -> 0 | E26: =IFERROR(SUMIF(وارد!$B$2:$B$20,$B26,وارد!$D$2:$D$20),"") -> 0 | F26: =IFERROR(SUMIF(وارد!$B$2:$B$20, $B26,وارد!$F$2:$F$20),"") -> 0 | G26: =IFERROR(SUMIF(منصرف!$B$2:$B$20,$B26,منصرف!$D$2:$D$20),"") -> 0 | H26: =IFERROR(SUMIF(منصرف!$B$2:$B$20,$B26,منصرف!$F$2:$F$20),"") -> 0 | I26: 0 | J26: 0
A27: =IFERROR(IF(B27="","",SUMIF('دليل الاصناف'!$B$2:$B$17,الجرد!B27,'دليل الاصناف'!$A$2:$A$17)),"") -> 0 | B27: ='دليل الاصناف'!B24 -> 0 | C27: =IFERROR(IF(B27="","",SUMIF('دليل الاصناف'!$B$2:$B$17,الجرد!B27,'دليل الاصناف'!$C$2:$C$16)),"") -> 0 | D27: =IFERROR(IF(B27="","",SUMIF('دليل الاصناف'!$B$2:$B$17,الجرد!B27,'دليل الاصناف'!$D$2:$D$16)),"") -> 0 | E27: =IFERROR(SUMIF(وارد!$B$2:$B$20,$B27,وارد!$D$2:$D$20),"") -> 0 | F27: =IFERROR(SUMIF(وارد!$B$2:$B$20, $B27,وارد!$F$2:$F$20),"") -> 0 | G27: =IFERROR(SUMIF(منصرف!$B$2:$B$20,$B27,منصرف!$D$2:$D$20),"") -> 0 | H27: =IFERROR(SUMIF(منصرف!$B$2:$B$20,$B27,منصرف!$F$2:$F$20),"") -> 0 | I27: 0 | J27: 0
A28: =IFERROR(IF(B28="","",SUMIF('دليل الاصناف'!$B$2:$B$17,الجرد!B28,'دليل الاصناف'!$A$2:$A$17)),"") -> 0 | B28: ='دليل الاصناف'!B25 -> 0 | C28: =IFERROR(IF(B28="","",SUMIF('دليل الاصناف'!$B$2:$B$17,الجرد!B28,'دليل الاصناف'!$C$2:$C$16)),"") -> 0 | D28: =IFERROR(IF(B28="","",SUMIF('دليل الاصناف'!$B$2:$B$17,الجرد!B28,'دليل الاصناف'!$D$2:$D$16)),"") -> 0 | E28: =IFERROR(SUMIF(وارد!$B$2:$B$20,$B28,وارد!$D$2:$D$20),"") -> 0 | F28: =IFERROR(SUMIF(وارد!$B$2:$B$20, $B28,وارد!$F$2:$F$20),"") -> 0 | G28: =IFERROR(SUMIF(منصرف!$B$2:$B$20,$B28,منصرف!$D$2:$D$20),"") -> 0 | H28: =IFERROR(SUMIF(منصرف!$B$2:$B$20,$B28,منصرف!$F$2:$F$20),"") -> 0 | I28: 0 | J28: 0
A29: =IFERROR(IF(B29="","",SUMIF('دليل الاصناف'!$B$2:$B$17,الجرد!B29,'دليل الاصناف'!$A$2:$A$17)),"") -> 0 | B29: ='دليل الاصناف'!B26 -> 0 | C29: =IFERROR(IF(B29="","",SUMIF('دليل الاصناف'!$B$2:$B$17,الجرد!B29,'دليل الاصناف'!$C$2:$C$16)),"") -> 0 | D29: =IFERROR(IF(B29="","",SUMIF('دليل الاصناف'!$B$2:$B$17,الجرد!B29,'دليل الاصناف'!$D$2:$D$16)),"") -> 0 | E29: =IFERROR(SUMIF(وارد!$B$2:$B$20,$B29,وارد!$D$2:$D$20),"") -> 0 | F29: =IFERROR(SUMIF(وارد!$B$2:$B$20, $B29,وارد!$F$2:$F$20),"") -> 0 | G29: =IFERROR(SUMIF(منصرف!$B$2:$B$20,$B29,منصرف!$D$2:$D$20),"") -> 0 | H29: =IFERROR(SUMIF(منصرف!$B$2:$B$20,$B29,منصرف!$F$2:$F$20),"") -> 0 | I29: 0 | J29: 0
J31: =SUM(J5:J29) -> 0
